Workbook

Sheet Disclaimer
A1: DISCLAIMER
B3: This Data Pack (the “Data Pack”) has been prepared by the Ministry of Finance of the Republic of Suriname (the “Republic”) with the assistance of its financial advisor Lazard Frères (“Lazard”) for the attention of the Republic’s creditors (each a “Recipient”) in connection with the Recipients’ consideration of certain potential transactions regarding the Republic’s external debt (the “Purpose”). While the Republic has used all reasonable efforts to ensure that the factual information contained herein is correct, accurate and complete in all material respects at the date of publication, neither the Republic, nor Lazard, nor any of their respective related or affiliated bodies, or entities, nor their or their affiliates’ respective stakeholders, directors, partners, officers, employees, advisers or other representatives, if any (together, the “Suriname Parties”), make any warranty or representation, expressed or implied, concerning the relevance, accuracy or completeness of either the information or the analyses of information contained herein or any other written, oral or other information made available to any Recipient in connection therewith including, without limitation, any historical financial information, the estimates and projections, and any other financial information, and nothing contained in this Data Pack is, or may be relied upon as, a promise or representation, whether as to the past or the future. Except insofar as liability under any law cannot be excluded, the Suriname Parties shall have no responsibility arising in respect of the information contained in this Data Pack or in any other way for errors or omissions (including responsibility to any person by reason of negligence). This Data Pack does not purport to be all-inclusive or to contain all the information that a Recipient may require in its assessment of the Republic’s economic or financial position. Further, this Data Pack has not been prepared with regard to the investment objectives, financial situation and particular needs of the Recipient. No Recipient is thus entitled to rely on this Data Pack for any purpose whatsoever and any Recipient should conduct their own independent review and analysis of the information contained in or referred to in this Data Pack and consult their own independent advisers as to legal, tax and accounting issues when assessing the Purpose. The information in this presentation reflects conditions, including economic, monetary and market prevailing as of November, all of which are subject to change. This Data Pack may contain certain forward-looking statements, estimates, targets and projections prepared on the basis of information provided by the Republic. Such statements, estimates and projections involve significant subjective elements of judgment and analysis which may or may not prove to be correct. There may be differences between forecast and actual results because events and circumstances frequently do not occur as forecast and these differences may be material. There can be no assurance that any of the estimates, targets or projections will be met. Accordingly, none of the Suriname Parties shall be liable for any direct, indirect or consequential loss or damage suffered by any person as a result of relying on any statement in or omission from this Data Pack and any such liability is expressly disclaimed. This Data Pack has been prepared exclusively for information purposes. Neither this Data Pack nor any information contained therein does or will form part of any legal agreement that may result from the review, investigation and analysis of this Data Pack by its Recipient and/or the Recipient’s representatives. Neither this Data Pack nor the information contained herein constitutes any form of commitment, recommendation or offer (either expressly or impliedly) on the part of any Suriname Parties. The Republic reserves any rights it may have in connection with any of its debt obligations and nothing contained in this Data Pack shall be construed as a waiver or amendment of such rights.

Sheet Legend (hidden)
A1: Legend
B3: Color code
B4: [Data] | C4: Hard-coded numbers (inputs)
B5: [Data] | C5: Links to other worksheets
B6: [Data] | C6: Links within the worksheet
B7: [Data] | C7: Formulas (calculations)

Sheet Real Economy >> (hidden)

Sheet Macro indicators (hidden)
A1: Republic of Suriname - Gross Domestic Product | O1: PRELIMINARY
D3: Indicator | E3: Unit | F3: Source | G3: 2010 | H3: =G3+1 -> 2011 | I3: =H3+1 -> 2012 | J3: 2013 | K3: 2014 | L3: 2015 | M3: 2016 | N3: 2017 | O3: 2018 | P3: 2019
D4: Real GDP growth | E4: % change (Y-o-Y) | F4: Central Bank | G4: 0.05163065127 | H4: 0.0584700505 | I4: 0.02696927591 | J4: 0.02930922135 | K4: 0.002540005554 | L4: -0.03413796514 | M4: -0.05559819111 | N4: 0.01762177831 | O4: 0.02579864333 | P4: 0.002682317223
D5: GDP deflator | E5: % change (Y-o-Y) | F5: Central Bank | G5: 0.07148993372 | H5: 0.1384589866 | I5: 0.1072682988 | J5: 0.003862262105 | K5: 0.01589698642 | L5: -0.02076407727 | M5: 0.2616308737 | N5: 0.2142332108 | O5: 0.04662013971 | P5: 0.06367273794
D6: Nominal GDP | E6: SRDm | F6: Central Bank | G6: =G18 -> 11993.017 | H6: =G6*(1+H4)*(1+H5) -> 14451.88221 | I6: =H6*(1+I4)*(1+I5) -> 16433.67637 | J6: 16980.66608 | K6: 17294.42414 | L6: 16357.18397 | M6: 19489.36354 | N6: 24081.64537 | O6: 25854.5727 | P6: 27574.57001
D7: End-of-Period FX rate (mid point) | E7: USD/SRD | F7: Central Bank | G7: 2.745 | H7: 3.3 | I7: 3.3 | J7: 3.3 | K7: 3.3 | L7: 4 | M7: 7.385 | N7: 7.455 | O7: 7.458 | P7: 7.458
D10: Breakdown of nominal GDP | E10: Unit | F10: Source | G10: 2010 | H10: =G10+1 -> 2011 | I10: =H10+1 -> 2012 | J10: 2013 | K10: 2014 | L10: 2015 | M10: 2016 | N10: 2017 | O10: 2018 | P10: 2019
D11: Manufacturing | E11: SRDm | F11: Central Bank | G11: 2516.5 | H11: 3008.418 | I11: 3499.201 | J11: 3190.332 | K11: 2828.228 | L11: 1619.399 | M11: 2617.656 | N11: 3802.721 | O11: 3795.738 | P11: 3249.911
D12: Wholesale and Retail Trade | E12: SRDm | F12: Central Bank | G12: 2329.591 | H12: 2679.462 | I12: 3081.879 | J12: 3177.417 | K12: 3244.113 | L12: 2993.463 | M12: 2740.458 | N12: 2773.36 | O12: 2706.342 | P12: 2930.545
D13: Government | E13: SRDm | F13: Central Bank | G13: 1306.287 | H13: 1457.653 | I13: 1628.554 | J13: 1875.692 | K13: 1939.949 | L13: 2010.896 | M13: 2123.776 | N13: 2360.639 | O13: 2778.373 | P13: 3956.372
D14: Transport, Storage and Communication | E14: SRDm | F14: Central Bank | G14: 712.409 | H14: 843.866 | I14: 1129.759 | J14: 1260.089 | K14: 1744.956 | L14: 1772.09 | M14: 2289.935 | N14: 2460.471 | O14: 2307.667 | P14: 2107.645
D15: Construction | E15: SRDm | F15: Central Bank | G15: 579.585 | H15: 832.509 | I15: 838.788 | J15: 994.268 | K15: 1255.249 | L15: 1485.714 | M15: 1566.732 | N15: 1826.81 | O15: 2047.435 | P15: 2181.279
D16: Mining and Quarrying | E16: SRDm | F16: Central Bank | G16: 864.995 | H16: 969.552 | I16: 1151.16 | J16: 955.406 | K16: 775.552 | L16: 505.255 | M16: 1065.271 | N16: 1846.971 | O16: 1910.714 | P16: 2036.359
D17: Other | E17: SRDm | F17: Central Bank | G17: 3683.65 | H17: 4660.418 | I17: 5104.334 | J17: 5527.459 | K17: 5506.375 | L17: 5970.364 | M17: 7085.532 | N17: 9010.67 | O17: 10308.3 | P17: 11112.455
D18: Total | E18: SRDm | F18: Central Bank | G18: =SUM(G11:G17) -> 11993.017 | H18: =SUM(H11:H17) -> 14451.878 | I18: 16433.675 | J18: 16980.663 | K18: 17294.422 | L18: 16357.181 | M18: 19489.36 | N18: 24081.642 | O18: 25854.569 | P18: 27574.566

Sheet COVID Impact (hidden)
A1: Republic of Suriname - Pre-COVID projections vs. Latest 2020 projections | L1: PRELIMINARY
G3: Pre-COVID projections for 2020 | I3: Latest 2020 projections²
D4: Indicators | E4: Units | G4: Sources | H4: Data | I4: Sources | J4: Data
D5: Real GDP growth | E5: % change (Y-o-Y) | G5: Central Bank | H5: 0.021 | I5: Central Bank | J5: -0.125
D6: Average CPI | E6: % change (Y-o-Y) | G6: Central Bank | H6: 0.037 | I6: Central Bank | J6: 0.4394269756
D7: Primary Balance | E7: % of GDP | G7: MoF | H7: =H8/H9 -> -0.1030371624 | I7: MoF | J7: =J8/J9 -> -0.1011824372
D8: Primary Deficit | E8: SRDm | G8: MoF | H8: -3301.05 | I8: MoF | J8: -3661.66
D9: Nominal GDP | E9: SRDm | G9: MoF | H9: 32037.47 | I9: MoF | J9: 36188.69147
D10: Total Central Government Debt Stock | E10: % of GDP | G10: Central Bank | H10: 0.847 | I10: SDMO¹ | J10: ='Dec 19 & Jun 20 Debt Stock'!$O$13 -> 1.231037062
D11: FX Rate | E11: USD/SRD | G11: Central Bank | H11: 7.458 | I11: Central Bank | J11: ='Dec 19 & Jun 20 Debt Stock'!$O$7 -> 14.154
D12: Total Foreign Currency Assets | E12: USDm | G12: Central Bank | H12: 834.9006568 | I12: Central Bank | J12: 426.4125718
D13: Total Foreign Currency Assets | E13: months of imports | G13: Central Bank | H13: 4.6 | I13: Central Bank | J13: 2.6
D15: (1) Reflects estimates of the debt stock as of June 2020 using an USD/SRD exchange rate of 14.2
D16: (2) As of 10th November 2020

Sheet BOP >> (hidden)

Sheet Current Account (hidden)
A1: Republic of Suriname - Current Account | O1: PRELIMINARY
D3: Indicators | E3: Units | F3: Sources | G3: 2010 | H3: =G3+1 -> 2011 | I3: 2012 | J3: 2013 | K3: 2014 | L3: 2015 | M3: 2016 | N3: 2017 | O3: 2018 | P3: 2019
D4: Exports of goods & services | E4: USDm | F4: Central Bank | G4: =SUM(G5:G6) -> 2325.48 | H4: 2847.709809 | I4: 2875.47199 | J4: 2594.735637 | K4: 2355.948068 | L4: 1856.433504 | M4: 1625.129003 | N4: 2195.023709 | O4: 2301.259688 | P4: 2373.516094
D5: o/w Exports of goods | E5: USDm | F5: Central Bank | G5: 2084.1 | H5: 2646.884707 | I5: 2700.15236 | J5: 2416.231125 | K5: 2145.263157 | L5: 1652.2509 | M5: 1438.657122 | N5: 2034.455011 | O5: 2129.122407 | P5: 2210.442868
D6: o/w Exports of services | E6: USDm | F6: Central Bank | G6: 241.38 | H6: 200.8251023 | I6: 175.3196295 | J6: 178.5045117 | K6: 210.6849109 | L6: 204.1826032 | M6: 186.471881 | N6: 160.5686976 | O6: 172.1372813 | P6: 163.0732258
D7: Exports of goods & services | E7: USDm | F7: Central Bank | G7: =SUM(G8:G9) -> 2325.48 | H7: 2847.709809 | I7: 2875.47199 | J7: 2594.735637 | K7: 2355.948068 | L7: 1856.433504 | M7: 1625.129003 | N7: 2195.023709 | O7: 2301.259688 | P7: 2373.516094
D8: o/w Exports (excl. Gold) | E8: USDm | F8: Central Bank | G8: =G4-G9 -> 1150.287813 | H8: 1326.735485 | I8: 1166.58094 | J8: 1120.656735 | K8: 1186.052804 | L8: 940.2134701 | M8: 588.4403681 | N8: 586.1707986 | O8: 669.6691094 | P8: 641.2783843
D9: o/w Gold Exports | E9: USDm | F9: Central Bank | G9: 1175.192187 | H9: 1520.974324 | I9: 1708.89105 | J9: 1474.078902 | K9: 1169.895264 | L9: 916.2200336 | M9: 1036.688635 | N9: 1608.85291 | O9: 1631.590579 | P9: 1732.237709
D10: Imports | E10: USDm | F10: Central Bank | G10: -1656.95 | H10: -2241.596123 | I10: -2593.38364 | J10: -2726.05304 | K10: -2773.155095 | L10: -2694.93312 | M10: -1721.064807 | N10: -1839.778393 | O10: -2134.49046 | P10: -2460.714678
D11: Other (net) | E11: USDm | F11: Central Bank | G11: -17.75 | H11: -174.8054903 | I11: -119.7170931 | J11: -64.68827742 | K11: 0.8556536166 | L11: 52.06465985 | M11: -64.54612702 | N11: -294.3470206 | O11: -284.752179 | P11: -322.9802142
D12: Current Account Balance | E12: USDm | F12: Central Bank | G12: =SUM(G8:G11) -> 650.78 | H12: =SUM(H8:H11) -> 431.3081962 | I12: 162.3712564 | J12: -196.0056799 | K12: -416.3513729 | L12: -786.4349561 | M12: -160.481931 | N12: 60.89829508 | O12: -117.9829505 | P12: -410.1787984

Sheet Fiscal >> (hidden)

Sheet Budget items (hidden)
A1: Republic of Suriname - Fiscal Performance | O1: PRELIMINARY
B3: 1 | D3: Primary and Overall Budget Balances
D5: Indicators | E5: Units | F5: Sources | G5: 2010 | H5: =G5+1 -> 2011 | I5: =H5+1 -> 2012 | J5: =I5+1 -> 2013 | K5: =J5+1 -> 2014 | L5: =K5+1 -> 2015 | M5: =L5+1 -> 2016 | N5: =M5+1 -> 2017 | O5: =N5+1 -> 2018 | P5: =O5+1 -> 2019
D6: Primary Balance | E6: % GDP | F6: MoF | G6: =(G25-(G13-G18))/G33 -> -0.02046942363 | H6: =(H25-(H13-H18))/H33 -> 0.008524996843 | I6: -0.01379387621 | J6: -0.03194766648 | K6: -0.0382068665 | L6: -0.08286160016 | M6: -0.08631781623 | N6: -0.0651216007 | O6: -0.07876584938 | P6: -0.1792901653
D7: Overall Balance | E7: % GDP | F7: MoF | G7: =(G25-G13)/G33 -> -0.02910553238 | H7: =(H25-H13)/H33 -> -0.0009457444679 | I7: -0.02348069307 | J7: -0.04523955031 | K7: -0.04704381983 | L7: -0.09806745989 | M7: -0.1127860308 | N7: -0.09300630027 | O7: -0.1143651884 | P7: -0.2124105876
B10: 2 | D10: Budget Expenditures
D12: Indicators | E12: Units | F12: Sources | G12: 2010 | H12: =G12+1 -> 2011 | I12: =H12+1 -> 2012 | J12: =I12+1 -> 2013 | K12: =J12+1 -> 2014 | L12: =K12+1 -> 2015 | M12: =L12+1 -> 2016 | N12: =M12+1 -> 2017 | O12: =N12+1 -> 2018 | P12: =O12+1 -> 2019
D13: Total expenditures | E13: SRDm | F13: MoF | G13: =G14+G19 -> 2955.308379 | H13: =H14+H19 -> 3551.129905 | I13: 4410.392639 | J13: 4728.438508 | K13: 4564.398573 | L13: 5253.864456 | M13: 5697.205756 | N13: 7354.156158 | O13: 8926.862951 | P13: 12291.46019
D14: Current expenditures | E14: SRDm | F14: MoF | G14: =G15+G16+G17+G18 -> 2402.637025 | H14: 2854.241489 | I14: 3680.9 | J14: 3972.479875 | K14: 3671.422269 | L14: 4822.883224 | M14: 4960.808305 | N14: 6116.689048 | O14: 7706.393838 | P14: 10199.70026
D15: Wage & Salaries | E15: SRDm | F15: MoF | G15: 1075.258871 | H15: 1097.004775 | I15: 1196.14 | J15: 1425.643981 | K15: 1373.338387 | L15: 1532.842977 | M15: 1602.185371 | N15: 1922.483411 | O15: 2414.399077 | P15: 3250.915196
D16: Goods & Services | E16: SRDm | F16: MoF | G16: 688.631279 | H16: 724.9517084 | I16: 1227.49 | J16: 680.2734068 | K16: 604.6496736 | L16: 1272.638432 | M16: 1092.748978 | N16: 1118.99422 | O16: 870.8433485 | P16: 1817.752822
D17: Subsidies | E17: SRDm | F17: MoF | G17: 535.173876 | H17: 895.4150078 | I17: 1098.08 | J17: 1640.857487 | K17: 1540.604208 | L17: 1768.676815 | M17: 1750.025394 | N17: 2403.702064 | O17: 3500.745846 | P17: 4217.750977
D18: Interest | E18: SRDm | F18: MoF | G18: 103.572999 | H18: 136.869998 | I18: 159.19 | J18: 225.705 | K18: 152.83 | L18: 248.725 | M18: 515.8485615 | N18: 671.5093522 | O18: 920.4055668 | P18: 913.2812684
D19: Capital expenditures | E19: SRDm | F19: MoF | G19: 552.671354 | H19: 696.8884163 | I19: 729.492639 | J19: 755.958633 | K19: 892.9763033 | L19: 430.9812329 | M19: 736.3974515 | N19: 1237.46711 | O19: 1220.469113 | P19: 2091.75993
B22: 3 | D22: Budget Revenues
D24: Indicators | E24: Units | F24: Sources | G24: 2010 | H24: =G24+1 -> 2011 | I24: =H24+1 -> 2012 | J24: =I24+1 -> 2013 | K24: =J24+1 -> 2014 | L24: =K24+1 -> 2015 | M24: =L24+1 -> 2016 | N24: =M24+1 -> 2017 | O24: =N24+1 -> 2018 | P24: =O24+1 -> 2019
D25: Revenues | E25: SRDm | F25: MoF | G25: =G26+G27 -> 2606.245234 | H25: =H26+H27 -> 3537.462122 | I25: 4024.51856 | J25: 3960.24095 | K25: 3750.8029 | L25: 3649.757265 | M25: 3499.0782 | N25: 5114.411731 | O25: 5970.000297 | P25: 6434.330427
D26: Commodities revenues | E26: SRDm | F26: MoF | G26: 627.5550653 | H26: 1322.719133 | I26: 1521.4775 | J26: 1215.837289 | K26: 840.4654961 | L26: 528.2594861 | M26: 653.0525727 | N26: 1782.838679 | O26: 2133.261352 | P26: 1964.880094
D27: Non-commodities revenues | E27: SRDm | F27: MoF | G27: 1978.690169 | H27: 2214.742989 | I27: 2503.04106 | J27: 2744.403661 | K27: 2910.337404 | L27: 3121.497779 | M27: 2846.025627 | N27: 3331.573052 | O27: 3836.738944 | P27: 4469.450334
B30: 4 | D30: Memorandum Items
D32: Indicators | E32: Unit | F32: Source | G32: 2010 | H32: =G32+1 -> 2011 | I32: =H32+1 -> 2012 | J32: 2013 | K32: 2014 | L32: 2015 | M32: 2016 | N32: 2017 | O32: 2018 | P32: 2019
D33: Nominal GDP | E33: SRDm | F33: Central Bank | G33: ='Macro indicators'!G18 -> 11993.017 | H33: ='Macro indicators'!H18 -> 14451.878 | I33: ='Macro indicators'!I18 -> 16433.675 | J33: ='Macro indicators'!J18 -> 16980.663 | K33: ='Macro indicators'!K18 -> 17294.422 | L33: ='Macro indicators'!L18 -> 16357.181 | M33: ='Macro indicators'!M18 -> 19489.36 | N33: ='Macro indicators'!N18 -> 24081.642 | O33: ='Macro indicators'!O18 -> 25854.569 | P33: ='Macro indicators'!P18 -> 27574.566
D34: Average WTI Price | E34: USD/bbl | F34: EIA | G34: 79.40515617 | H34: 95.04642979 | I34: 94.14316406 | J34: 97.93445579 | K34: 93.13460414 | L34: 48.74765171 | M34: 43.2262511 | N34: 50.92418672 | O34: 64.78534093 | P34: 56.99465429

Sheet Central Government Debt >> (hidden)

Sheet Historical Debt Stock (hidden)
A1: Republic of Suriname - Historical Evolution of Central Government Debt Stock¹ | O1: PRELIMINARY
D3: Indicators | E3: Unit | F3: Sources | G3: 2010 | H3: =G3+1 -> 2011 | I3: =H3+1 -> 2012 | J3: 2013 | K3: 2014 | L3: 2015 | M3: 2016 | N3: 2017 | O3: 2018 | P3: =(O3+1) -> 2019
D5: Central Government external debt | E5: USDm | F5: SDMO | G5: 334.404 | H5: 463.477 | I5: 567.816 | J5: 739.174 | K5: 810.601 | L5: 876.621 | M5: 1425.423 | N5: 1682.677 | O5: 1715.402 | P5: ='Dec 19 & Jun 20 Debt Stock'!$E$15 -> 2319.747134
D7: Central Government domestic debt | E7: SRDm | F7: SDMO | G7: 1296.488 | H7: 1359.420439 | I7: 1661.74283 | J7: 2586.333032 | K7: 1886.984133 | L7: 3593.069962 | M7: 4201.544393 | N7: 5435.296089 | O7: 5828.43009 | P7: =P8*P10 -> 5023.498097
D8: Central Government domestic debt | E8: USDm | F8: SDMO | G8: =G7/G10 -> 472.3089253 | H8: 411.9455876 | I8: 503.5584333 | J8: 783.7372825 | K8: 571.8133738 | L8: 898.2674906 | M8: 568.9295048 | N8: 729.0806289 | O8: 781.5004143 | P8: ='Dec 19 & Jun 20 Debt Stock'!$E$37 -> 673.5717481
D10: End-of-Period FX rate (mid point) | E10: USD/SRD | F10: Central Bank | G10: ='Macro indicators'!G7 -> 2.745 | H10: ='Macro indicators'!H7 -> 3.3 | I10: ='Macro indicators'!I7 -> 3.3 | J10: ='Macro indicators'!J7 -> 3.3 | K10: ='Macro indicators'!K7 -> 3.3 | L10: ='Macro indicators'!L7 -> 4 | M10: ='Macro indicators'!M7 -> 7.385 | N10: ='Macro indicators'!N7 -> 7.455 | O10: ='Macro indicators'!O7 -> 7.458 | P10: ='Macro indicators'!P7 -> 7.458
D12: Nominal GDP | E12: SRDm | F12: Central Bank | G12: ='Macro indicators'!$G$18 -> 11993.017 | H12: =G12*(1+H14)*(1+H15) -> 14451.88221 | I12: 16433.67637 | J12: 16980.66608 | K12: 17294.42414 | L12: 16357.18397 | M12: 19489.36354 | N12: 24081.64537 | O12: 25854.5727 | P12: 27574.57001
D13: Nominal GDP | E13: USDm | G13: =G12/G10 -> 4369.040801 | H13: 4379.358244 | I13: 4979.90193 | J13: 5145.656389 | K13: 5240.734588 | L13: 4089.295993 | M13: 2639.047196 | N13: 3230.267656 | O13: 3466.689823 | P13: 3697.314295
D14: Real GDP growth | E14: % change | F14: Central Bank | G14: ='Macro indicators'!G4 -> 0.05163065127 | H14: ='Macro indicators'!H4 -> 0.0584700505 | I14: ='Macro indicators'!I4 -> 0.02696927591 | J14: ='Macro indicators'!J4 -> 0.02930922135 | K14: ='Macro indicators'!K4 -> 0.002540005554 | L14: ='Macro indicators'!L4 -> -0.03413796514 | M14: ='Macro indicators'!M4 -> -0.05559819111 | N14: ='Macro indicators'!N4 -> 0.01762177831 | O14: ='Macro indicators'!O4 -> 0.02579864333 | P14: ='Macro indicators'!P4 -> 0.002682317223
D15: GDP deflator | E15: % change | F15: Central Bank | G15: ='Macro indicators'!G5 -> 0.07148993372 | H15: ='Macro indicators'!H5 -> 0.1384589866 | I15: ='Macro indicators'!I5 -> 0.1072682988 | J15: ='Macro indicators'!J5 -> 0.003862262105 | K15: ='Macro indicators'!K5 -> 0.01589698642 | L15: ='Macro indicators'!L5 -> -0.02076407727 | M15: ='Macro indicators'!M5 -> 0.2616308737 | N15: ='Macro indicators'!N5 -> 0.2142332108 | O15: ='Macro indicators'!O5 -> 0.04662013971 | P15: ='Macro indicators'!P5 -> 0.06367273794
D17: Central Government external debt² | E17: % of GDP | F17: SDMO | G17: =G5/G13 -> 0.07653945458 | H17: 0.1058321732 | I17: 0.1140215225 | J17: 0.1436500893 | K17: 0.1546731639 | L17: 0.214369662 | M17: 0.5401278925 | N17: 0.5209094661 | O17: 0.4948241948 | P17: 0.6274141036
D18: Central Government total debt | E18: % of GDP | F18: SDMO | G18: =(G5+G8)/G13 -> 0.1846430285 | H18: 0.1998974596 | I18: 0.2151396651 | J18: 0.2959605475 | K18: 0.2637825577 | L18: 0.4340327757 | M18: 0.7557092984 | N18: 0.7466123201 | O18: 0.7202555008 | P18: 0.8095927593
D20: (1) Including arrears
D21: (2) Classification under External Debt for 2019 includes FX denominated debt in foreign law and FX denominated d ebt in local law

Sheet Dec 19 & Jun 20 Debt Stock (hidden)
A1: Republic of Suriname - Central Government Debt Stock as of Dec. 2019 and Jun. 2020 | N1: PRELIMINARY
B3: Preliminary data as of 10th November 2020
C5: As of End-2019 | J5: As of June-2020
C7: Official exchange rate (USD/SRD) pre-devaluation | H7: ='Macro indicators'!$P$7 -> 7.458 | J7: Official exchange rate (USD/SRD) post-devaluation | O7: 14.154
C8: Nominal GDP in SRDm as of end-2019 (Estimated) | H8: ='Macro indicators'!$P$18 -> 27574.566 | J8: Nominal GDP in SRDm as of end-2020 (Projected) | O8: 36188.70051
C9: Nominal GDP in USDm as of end-2019 (Estimated) | H9: =H8/H7 -> 3697.313757 | J9: Nominal GDP in USDm as of end-2020 (Projected) | O9: =O8/O7 -> 2556.782571
C11: Stock in USDm | D11: Arrears in USDm | E11: Stock + Arrears in USDm | F11: In % of total debt | G11: In % of GDP (excl. arrears) | H11: In % of GDP (incl. arrears) | J11: Stock in USDm | K11: Arrears in USDm | L11: Stock + Arrears in USDm | M11: In % of total debt | N11: In % of GDP (excl. arrears) | O11: In % of GDP (incl. arrears)
B13: Total Central Government debt | C13: =C15+C37 -> 2942.781147 | D13: =D15+D37 -> 50.53773531 | E13: =C13+D13 -> 2993.318882 | F13: =E13/$E$13 -> 1 | G13: =C13/$H$9 -> 0.795924106 | H13: =E13/$H$9 -> 0.809592877 | J13: =J15+J37 -> 3051.086421 | K13: =K15+K37 -> 96.40768311 | L13: =J13+K13 -> 3147.494104 | M13: =L13/$L$13 -> 1 | N13: =J13/$O$9 -> 1.193330421 | O13: =L13/$O$9 -> 1.231037062
B15: A. Foreign currency debt (A1+A2) | C15: =C16+C25 -> 2283.11318 | D15: =D16+D25 -> 36.63395349 | E15: =C15+D15 -> 2319.747134 | F15: =E15/$E$13 -> 0.7749749443 | G15: =C15/$H$9 -> 0.6175059328 | H15: =E15/$H$9 -> 0.6274141948 | J15: =J16+J25 -> 2216.43887 | K15: =K16+K25 -> 64.96813759 | L15: =J15+K15 -> 2281.407007 | M15: =L15/$L$13 -> 0.7248328136 | N15: =J15/$O$9 -> 0.8668859429 | O15: =L15/$O$9 -> 0.8922960573
B16: A1. Market debt | C16: =C17+C20+C21+C24 -> 1125.178238 | D16: =D17+D20+D21+D24 -> 36.63395349 | E16: 1161.812192 | F16: 0.3881351227 | G16: 0.3043231687 | H16: 0.3142314307 | J16: =J17+J20+J21+J24 -> 1045.296383 | K16: =K17+K20+K21+K24 -> 41.69740912 | L16: 1086.993792 | M16: 0.3453521296 | N16: =J16/$O$9 -> 0.4088327238 | O16: 0.425141271
B17: Capital market debt - Foreign law | C17: =C18+C19 -> 675 | D17: =D18+D19 -> 0 | E17: 675 | F17: 0.2255022023 | G17: 0.1825649767 | H17: 0.1825649767 | J17: =J18+J19 -> 675 | K17: =K18+K19 -> 0 | L17: 675 | M17: 0.2144563191 | N17: =J17/$O$9 -> 0.264003677 | O17: 0.264003677
B18: Eurobond 2023 (no "IMF condition") | C18: 125 | D18: 0 | E18: 125 | F18: 0.04175966709 | G18: 0.03380832902 | H18: 0.03380832902 | J18: 125 | K18: 0 | L18: 125 | M18: 0.03971413317 | N18: =J18/$O$9 -> 0.04888956982 | O18: 0.04888956982
B19: Eurobond 2026 | C19: 550 | D19: 0 | E19: 550 | F19: 0.1837425352 | G19: 0.1487566477 | H19: 0.1487566477 | J19: 550 | K19: 0 | L19: 550 | M19: 0.1747421859 | N19: =J19/$O$9 -> 0.2151141072 | O19: 0.2151141072
B20: Commercial creditors - Foreign law | C20: 153.5869545 | D20: 0 | E20: 153.5869545 | F20: 0.05130992071 | G20: 0.04154014632 | H20: 0.04154014632 | J20: 146.8575993 | K20: 9.665176289 | L20: 156.5227756 | M20: 0.04972933083 | N20: =J20/$O$9 -> 0.05743843883 | O20: 0.06121864932
B21: Capital market debt - Local law | C21: =C22+C23 -> 133.5535536 | D21: =D22+D23 -> 23.40564327 | E21: 156.9591968 | F21: 0.05243651045 | G21: 0.03612177985 | H21: 0.04245222536 | J21: =J22+J23 -> 145.0350212 | K21: =K22+K23 -> 16.88170885 | L21: 161.91673 | M21: 0.05144306063 | N21: =J21/$O$9 -> 0.05672559836 | O21: 0.06332831422
B22: T-Bonds | C22: 126.9620902 | D22: 0.1122118293 | E22: 127.074302 | F22: 0.04245264437 | G22: 0.03433900894 | H22: 0.0343693585 | J22: 125.3969447 | K22: 6.806708846 | L22: 132.2036535 | M22: 0.04200282801 | N22: 0.04904482145 | O22: 0.05170703799
B23: T-Bills | C23: 6.591463415 | D23: 23.29343144 | E23: 29.88489486 | F23: 0.009983866082 | G23: 0.001782770911 | H23: 0.008082866866 | J23: 19.63807652 | K23: 10.075 | L23: 29.71307652 | M23: 0.009440232623 | N23: 0.007680776907 | O23: 0.01162127623
B24: Commercial creditors - Local law | C24: 163.03773 | D24: 13.22831022 | E24: 176.2660402 | F24: 0.05888648927 | G24: 0.04409626575 | H24: 0.04767408227 | J24: 78.40376217 | K24: 15.15052399 | L24: 93.55428616 | M24: 0.02972341903 | N24: 0.03066500964 | O24: 0.03659063044
B25: A2. Non-market debt | C25: =C26+C33 -> 1157.934942 | D25: =D26+D33 -> 0 | E25: 1157.934942 | F25: 0.3868398216 | G25: 0.3131827641 | H25: 0.3131827641 | J25: =J26+J33 -> 1171.142487 | K25: =K26+K33 -> 23.27072847 | L25: 1194.413216 | M25: 0.379480684 | N25: 0.4580532191 | O25: 0.4671547863
B26: Multilateral creditors | C26: =SUM(C27:C32) -> 635.6750836 | D26: =SUM(D27:D32) -> 0 | E26: 635.6750836 | F26: 0.2123646389 | G26: 0.171928899 | H26: 0.171928899 | J26: =SUM(J27:J32) -> 646.0223921 | K26: 6.926879788 | L26: 652.9492719 | M26: 0.2074505147 | N26: 0.2526700547 | O26: 0.2553792721
B27: Inter American Development Bank (IADB) | C27: 534.0725747 | D27: 0 | E27: 534.0725747 | F27: 0.1784215434 | G27: 0.1444488106 | H27: 0.1444488106 | J27: 529.6615121 | K27: 2.28907919 | L27: 531.9505913 | M27: 0.169007653 | N27: 0.2071593878 | O27: 0.2080546846
B28: Caribbean Development Bank (CDB) | C28: 62.76118309 | D28: 0 | E28: 62.76118309 | F28: 0.0209670889 | G28: 0.01697480582 | H28: 0.01697480582 | J28: 62.1379307 | K28: 2.44463507 | L28: 64.58256577 | M28: 0.02051872494 | N28: 0.02430317361 | O28: 0.02525931087
B29: Organization of the Petroleum Exporting Countries (OPEC) | C29: 21.93512696 | D29: 0 | E29: 21.93512696 | F29: 0.007328028795 | G29: 0.005932719915 | H29: 0.005932719915 | J29: 21.86215142 | K29: 0.88333 | L29: 22.74548142 | M29: 0.007226536625 | N29: 0.008550649426 | O29: 0.008896134415
B30: Islamic Development Bank (IsDB) | C30: 14.70603979 | D30: 0 | E30: 14.70603979 | F30: =E30/$E$13 -> 0.004912954605 | G30: 0.003977493054 | H30: 0.003977493054 | J30: 28.85734945 | K30: 1.077033911 | L30: 29.93438336 | M30: 0.009510544697 | N30: 0.01128658721 | O30: 0.011707833
B31: European Investment Bank (EIB) | C31: 2.11265909 | D31: 0 | E31: 2.11265909 | F31: 0.0007057915223 | G31: 0.0005714037891 | H31: 0.0005714037891 | J31: 1.878198396 | K31: 0.2194581064 | L31: 2.097656502 | M31: 0.0006664528773 | N31: 0.0007345944928 | O31: 0.0008204281921
B32: Worldbank (IBRD) | C32: 0.0875 | D32: 0 | E32: 0.0875 | F32: 2.923176696e-05 | G32: 2.366583032e-05 | H32: 2.366583032e-05 | J32: 1.62525 | K32: 0.01334351 | L32: 1.63859351 | M32: 0.0005206025669 | N32: 0.0006356621868 | O32: 0.0006408810545
B33: Bilateral creditors | C33: =SUM(C34:C36) -> 522.2598587 | D33: =SUM(D34:D36) -> 0 | E33: 522.2598587 | F33: 0.1744751827 | G33: 0.1412538651 | H33: 0.1412538651 | J33: =SUM(J34:J36) -> 525.120095 | K33: =SUM(K34:K36) -> 16.34384868 | L33: 541.4639437 | M33: 0.1720301693 | N33: 0.2053831644 | O33: 0.2117755142
B34: China | C34: 454.0589355 | D34: 0 | E34: 454.0589355 | F34: 0.1516907999 | G34: 0.1228077911 | H34: 0.1228077911 | J34: 456.8815553 | K34: 12.47684912 | L34: 469.3584044 | M34: 0.1491212974 | N34: 0.1786939416 | O34: 0.1835738439
B35: France | C35: 35.43413159 | D35: 0 | E35: 35.43413159 | F35: 0.01183774031 | G35: 0.009583750235 | H35: 0.009583750235 | J35: 33.89777131 | K35: 2.103182782 | L35: 36.0009541 | M35: 0.01143797348 | N35: 0.01325797966 | O35: 0.01408056927
B36: India | C36: 32.76679161 | D36: 0 | E36: 32.76679161 | F36: 0.01094664247 | G36: 0.008862323774 | H36: 0.008862323774 | J36: 34.34076837 | K36: 1.76381678 | L36: 36.10458515 | M36: 0.01147089842 | N36: 0.01343124314 | O36: 0.01412110109
B37: B. Local currency debt (B1+B2) | C37: =C38+C45 -> 659.6679663 | D37: =D38+D45 -> 13.90378182 | E37: 673.5717481 | F37: 0.2250250557 | G37: 0.1784181732 | H37: 0.1821786822 | J37: =J38+J45 -> 834.6475514 | K37: =K38+K45 -> 31.43954552 | L37: 866.0870969 | M37: 0.2751671864 | N37: 0.3264444779 | O37: 0.3387410047
B38: B1. Market debt (B1.1.+ B1.2.) | C38: =C39+C42 -> 171.8328248 | D38: =D39+D42 -> 13.90378182 | E38: 185.7366066 | F38: 0.06205039087 | G38: 0.04647504542 | H38: 0.05023555447 | J38: =J39+J42 -> 112.4494922 | K38: =K39+K42 -> 31.43954552 | L38: 143.8890377 | M38: 0.04571542723 | N38: 0.04398085839 | O38: 0.05627738523
B39: B1.1. Loans | C39: =C40+C41 -> 61.97896517 | D39: =D40+D41 -> 0.919780623 | E39: 62.89874579 | F39: 0.02101304548 | G39: 0.01676324198 | H39: 0.01701201194 | J39: =J40+J41 -> 59.67795569 | K39: =K40+K41 -> 8.291855281 | L39: 67.96981097 | M39: 0.021594897 | N39: 0.02334103665 | O39: 0.02658411855
B40: Private sector/commercial banks FX-linked debt | C40: 51.48689905 | D40: 0.433939346 | E40: 51.9208384 | F40: 0.01734557541 | G40: 0.01392548819 | H40: 0.0140428543 | J40: 52.51461365 | K40: 7.857668429 | L40: 60.37228208 | M40: 0.0191810628 | N40: 0.02053933496 | O40: 0.0236125992
B41: Private sector/commercial banks non FX-linked debt | C41: 10.49206612 | D41: 0.485841277 | E41: 10.9779074 | F41: 0.003667470067 | G41: 0.002837753789 | H41: 0.002969157643 | J41: 7.163342045 | K41: 0.4341868528 | L41: 7.597528897 | M41: 0.002413834195 | N41: 0.002801701688 | O41: 0.002971519356
B42: B1.2. T-Bonds and T-Bills | C42: =C43+C44 -> 109.8538596 | D42: =D43+D44 -> 12.98400119 | E42: 122.8378608 | F42: 0.04103734539 | G42: 0.02971180345 | H42: 0.03322354252 | J42: =J43+J44 -> 52.77153648 | K42: =K43+K44 -> 23.14769024 | L42: 75.91922672 | M42: 0.02412053024 | N42: 0.02063982174 | O42: 0.02969326668
B43: T-Bonds | C43: 53.64714357 | D43: 2.153326227 | E43: 55.8004698 | F43: 0.01864167234 | G43: 0.01450976225 | H43: 0.01509216514 | J43: 29.07683324 | K43: 3.08513479 | L43: 32.16196803 | M43: 0.01021827745 | N43: 0.01137243095 | O43: 0.01257907825
B44: T-Bills | C44: 56.20671606 | D44: 10.83067497 | E44: 67.03739103 | F44: 0.02239567305 | G44: 0.0152020412 | H44: 0.01813137738 | J44: 23.69470324 | K44: 20.06255545 | L44: 43.75725869 | M44: 0.01390225279 | N44: 0.009267390787 | O44: 0.01711418843
B45: B2. Non-market debt | C45: =C46 -> 487.8351415 | D45: =D46 -> 0 | E45: 487.8351415 | F45: 0.1629746648 | G45: 0.1319431278 | H45: 0.1319431278 | J45: =J46 -> 722.1980592 | K45: =K46 -> 0 | L45: 722.1980592 | M45: 0.2294517592 | N45: 0.2824636195 | O45: 0.2824636195
B46: Central Bank | C46: 487.8351415 | D46: 0 | E46: 487.8351415 | F46: 0.1629746648 | G46: 0.1319431278 | H46: 0.1319431278 | J46: 722.1980592 | K46: 0 | L46: 722.1980592 | M46: 0.2294517592 | N46: 0.2824636195 | O46: 0.2824636195

Sheet Annual Debt Service (hidden)
A1: Republic of Suriname - Central Government Annual Debt Service on a Contractual Basis on December 2019 Outstanding Debt Stock | AH1: PRELIMINARY
B3: Preliminary data as of 10th November 2020 Data reflects contractual debt service
D5: Official exchange rate (USD/SRD) pre-devaluation | E5: ='Macro indicators'!$P$7 -> 7.458
D6: Nominal GDP in SRDm as of end-2019 (Estimated) | E6: ='Macro indicators'!$P$18 -> 27574.566
D7: Nominal GDP in USDm as of end-2019 (Estimated) | E7: =E6/E5 -> 3697.313757
B9: =MAX($B$1:B8)+1 -> 1 | D9: Central Government Contractual Debt Service on Dec-2019 outstanding debt stock (USDm)
E11: 2020 | F11: =E11+1 -> 2021 | G11: 2022 | H11: 2023 | I11: 2024 | J11: 2025 | K11: 2026 | L11: 2027 | M11: 2028 | N11: 2029 | O11: 2030 | P11: 2031 | Q11: 2032 | R11: 2033 | S11: 2034 | T11: 2035 | U11: 2036 | V11: 2037 | W11: 2038 | X11: 2039 | Y11: 2040 | Z11: 2041 | AA11: 2042 | AB11: 2043 | AC11: 2044 | AD11: 2045 | AE11: 2046 | AF11: 2047 | AG11: 2048 | AH11: 2049 | AI11: 2050
D13: Total Central Government debt | E13: =E53+E93 -> 1004.380244 | F13: 350.6007267 | G13: 270.6843168 | H13: 356.5315986 | I13: 191.6856429 | J13: 184.9736822 | K13: 729.8577806 | L13: 118.8670167 | M13: 107.6776665 | N13: 87.8477494 | O13: 72.89211451 | P13: 68.29942784 | Q13: 61.13705633 | R13: 49.2434536 | S13: 36.88986981 | T13: 32.39368379 | U13: 22.44835808 | V13: 19.46806328 | W13: 4.644697639 | X13: 4.117469439 | Y13: 2.898426439 | Z13: 1.309539948 | AA13: 0.501814874 | AB13: 0.0151899 | AC13: 0.0151005 | AD13: 0.0149484 | AE13: 0.0148276 | AF13: 0.0147069 | AG13: 0.0146161 | AH13: 4.3453804 | AI13: 0
D15: A. Foreign currency debt (A1+A2) | E15: =E55+E95 -> 373.6786762 | F15: 281.640513 | G15: 262.204193 | H15: 350.7811158 | I15: 187.2692877 | J15: 181.0526718 | K15: 726.1003715 | L15: 116.3093399 | M15: 107.2515881 | N15: 87.42887524 | O15: 72.89211451 | P15: 68.29942784 | Q15: 61.13705633 | R15: 49.2434536 | S15: 36.88986981 | T15: 32.39368379 | U15: 22.44835808 | V15: 19.46806328 | W15: 4.644697639 | X15: 4.117469439 | Y15: 2.898426439 | Z15: 1.309539948 | AA15: 0.501814874 | AB15: 0.0151899 | AC15: 0.0151005 | AD15: 0.0149484 | AE15: 0.0148276 | AF15: 0.0147069 | AG15: 0.0146161 | AH15: 4.3453804 | AI15: 0
D16: A1. Market debt | E16: =E56+E96 -> 271.2001758 | F16: 169.7416641 | G16: 137.3700548 | H16: 230.2471163 | I16: 73.24487987 | J16: 70.49112837 | K16: 618.5665951 | L16: 13.55755179 | M16: 10.02059497 | N16: 8.039538954 | O16: 1.730332697 | P16: 1.109245054 | Q16: 0.8399106097 | R16: 0 | S16: 0 | T16: 0 | U16: 0 | V16: 0 | W16: 0 | X16: 0 | Y16: 0 | Z16: 0 | AA16: 0 | AB16: 0 | AC16: 0 | AD16: 0 | AE16: 0 | AF16: 0 | AG16: 0 | AH16: 0 | AI16: 0
D17: Capital market debt - Foreign law | E17: =E57+E97 -> 82.41579861 | F17: 100.5239583 | G17: 95.803125 | H17: 91.08229167 | I17: 50.875 | J17: 50.875 | K17: 600.875 | L17: 0 | M17: 0 | N17: 0 | O17: 0 | P17: 0 | Q17: 0 | R17: 0 | S17: 0 | T17: 0 | U17: 0 | V17: 0 | W17: 0 | X17: 0 | Y17: 0 | Z17: 0 | AA17: 0 | AB17: 0 | AC17: 0 | AD17: 0 | AE17: 0 | AF17: 0 | AG17: 0 | AH17: 0 | AI17: 0
D18: Eurobond 2023 (no "IMF condition") | E18: =E58+E98 -> 31.54079861 | F18: 49.64895833 | G18: 44.928125 | H18: 40.20729167 | I18: 0 | J18: 0 | K18: 0 | L18: 0 | M18: 0 | N18: 0 | O18: 0 | P18: 0 | Q18: 0 | R18: 0 | S18: 0 | T18: 0 | U18: 0 | V18: 0 | W18: 0 | X18: 0 | Y18: 0 | Z18: 0 | AA18: 0 | AB18: 0 | AC18: 0 | AD18: 0 | AE18: 0 | AF18: 0 | AG18: 0 | AH18: 0 | AI18: 0
D19: Eurobond 2026 | E19: =E59+E99 -> 50.875 | F19: 50.875 | G19: 50.875 | H19: 50.875 | I19: 50.875 | J19: 50.875 | K19: 600.875 | L19: 0 | M19: 0 | N19: 0 | O19: 0 | P19: 0 | Q19: 0 | R19: 0 | S19: 0 | T19: 0 | U19: 0 | V19: 0 | W19: 0 | X19: 0 | Y19: 0 | Z19: 0 | AA19: 0 | AB19: 0 | AC19: 0 | AD19: 0 | AE19: 0 | AF19: 0 | AG19: 0 | AH19: 0 | AI19: 0
D20: Commercial creditors - Foreign law | E20: =E60+E100 -> 27.87363694 | F20: 27.69229347 | G20: 20.15042968 | H20: 20.67763342 | I20: 18.9730129 | J20: 16.29780538 | K20: 14.45104366 | L20: 11.49426055 | M20: 9.741176294 | N20: 8.039538954 | O20: 1.730332697 | P20: 1.109245054 | Q20: 0.8399106097 | R20: 0 | S20: 0 | T20: 0 | U20: 0 | V20: 0 | W20: 0 | X20: 0 | Y20: 0 | Z20: 0 | AA20: 0 | AB20: 0 | AC20: 0 | AD20: 0 | AE20: 0 | AF20: 0 | AG20: 0 | AH20: 0 | AI20: 0
D21: Capital market debt - Local law | E21: =E61+E101 -> 34.35292617 | F21: 24.65902578 | G21: 11.79669773 | H21: 111.6770135 | I21: 0 | J21: 0 | K21: 0 | L21: 0 | M21: 0 | N21: 0 | O21: 0 | P21: 0 | Q21: 0 | R21: 0 | S21: 0 | T21: 0 | U21: 0 | V21: 0 | W21: 0 | X21: 0 | Y21: 0 | Z21: 0 | AA21: 0 | AB21: 0 | AC21: 0 | AD21: 0 | AE21: 0 | AF21: 0 | AG21: 0 | AH21: 0 | AI21: 0
D22: T-Bonds | E22: =E62+E102 -> 27.50917617 | F22: 24.65902578 | G22: 11.79669773 | H22: 111.6770135 | I22: 0 | J22: 0 | K22: 0 | L22: 0 | M22: 0 | N22: 0 | O22: 0 | P22: 0 | Q22: 0 | R22: 0 | S22: 0 | T22: 0 | U22: 0 | V22: 0 | W22: 0 | X22: 0 | Y22: 0 | Z22: 0 | AA22: 0 | AB22: 0 | AC22: 0 | AD22: 0 | AE22: 0 | AF22: 0 | AG22: 0 | AH22: 0 | AI22: 0
D23: T-Bills | E23: =E63+E103 -> 6.84375 | F23: 0 | G23: 0 | H23: 0 | I23: 0 | J23: 0 | K23: 0 | L23: 0 | M23: 0 | N23: 0 | O23: 0 | P23: 0 | Q23: 0 | R23: 0 | S23: 0 | T23: 0 | U23: 0 | V23: 0 | W23: 0 | X23: 0 | Y23: 0 | Z23: 0 | AA23: 0 | AB23: 0 | AC23: 0 | AD23: 0 | AE23: 0 | AF23: 0 | AG23: 0 | AH23: 0 | AI23: 0
D24: Commercial creditors - Local law | E24: =E64+E104 -> 126.557814 | F24: 16.86638656 | G24: 9.619802427 | H24: 6.810177725 | I24: 3.396866978 | J24: 3.318322993 | K24: 3.240551478 | L24: 2.063291238 | M24: 0.2794186722 | N24: 0 | O24: 0 | P24: 0 | Q24: 0 | R24: 0 | S24: 0 | T24: 0 | U24: 0 | V24: 0 | W24: 0 | X24: 0 | Y24: 0 | Z24: 0 | AA24: 0 | AB24: 0 | AC24: 0 | AD24: 0 | AE24: 0 | AF24: 0 | AG24: 0 | AH24: 0 | AI24: 0
D25: A2. Non-market debt | E25: =E65+E105 -> 102.4785005 | F25: 111.8988489 | G25: 124.8341381 | H25: 120.5339995 | I25: 114.0244079 | J25: 110.5615434 | K25: 107.5337764 | L25: 102.7517881 | M25: 97.23099314 | N25: 79.38933629 | O25: 71.16178182 | P25: 67.19018279 | Q25: 60.29714572 | R25: 49.2434536 | S25: 36.88986981 | T25: 32.39368379 | U25: 22.44835808 | V25: 19.46806328 | W25: 4.644697639 | X25: 4.117469439 | Y25: 2.898426439 | Z25: 1.309539948 | AA25: 0.501814874 | AB25: 0.0151899 | AC25: 0.0151005 | AD25: 0.0149484 | AE25: 0.0148276 | AF25: 0.0147069 | AG25: 0.0146161 | AH25: 4.3453804 | AI25: 0
D26: Multilateral creditors | E26: =E66+E106 -> 63.66174822 | F26: 67.48970888 | G26: 69.38457841 | H26: 67.08407658 | I26: 63.71805835 | J26: 61.42276418 | K26: 59.52814128 | L26: 55.92704648 | M26: 51.57321912 | N26: 47.09465703 | O26: 45.03774863 | P26: 42.5361323 | Q26: 36.15852213 | R26: 28.37013385 | S26: 16.48265897 | T26: 12.50028645 | U26: 9.296308854 | V26: 6.590825054 | W26: 4.644697639 | X26: 4.117469439 | Y26: 2.898426439 | Z26: 1.309539948 | AA26: 0.501814874 | AB26: 0.0151899 | AC26: 0.0151005 | AD26: 0.0149484 | AE26: 0.0148276 | AF26: 0.0147069 | AG26: 0.0146161 | AH26: 4.3453804 | AI26: 0
D27: Inter American Development Bank (IADB) | E27: =E67+E107 -> 47.25951655 | F27: 51.95764883 | G27: 53.74637043 | H27: 52.80010392 | I27: 51.46576142 | J27: 50.06243632 | K27: 48.58283922 | L27: 45.88642752 | M27: 44.49645076 | N27: 42.60746957 | O27: 40.79190648 | P27: 39.49835898 | Q27: 34.25326178 | R27: 26.6051796 | S27: 15.84367677 | T27: 12.36834485 | U27: 9.263241954 | V27: 6.557883254 | W27: 4.611876539 | X27: 4.112646539 | Y27: 2.893721339 | Z27: 1.304958548 | AA27: 0.497354274 | AB27: 0.01085 | AC27: 0.0108797 | AD27: 0.01085 | AE27: 0.01085 | AF27: 0.01085 | AG27: 0.0108797 | AH27: 4.3453804 | AI27: 0
D28: Caribbean Development Bank (CDB) | E28: =E68+E108 -> 8.9144774 | F28: 8.8878934 | G28: 9.358951153 | H28: 9.023633753 | I28: 8.690964952 | J28: 8.352998553 | K28: 8.017680953 | L28: 7.682363553 | M28: 4.863666553 | N28: 2.221728452 | O28: 2.126410952 | P28: 1.943801522 | Q28: 0.8470526525 | R28: 0.8267744525 | S28: 0.0925493 | T28: 0 | U28: 0 | V28: 0 | W28: 0 | X28: 0 | Y28: 0 | Z28: 0 | AA28: 0 | AB28: 0 | AC28: 0 | AD28: 0 | AE28: 0 | AF28: 0 | AG28: 0 | AH28: 0 | AI28: 0
D29: Organization of the Petroleum Exporting Countries (OPEC) | E29: =E69+E109 -> 2.7023298 | F29: 2.6449044 | G29: 2.5653498 | H29: 2.4857953 | I29: 2.4081108 | J29: 2.3266862 | K29: 2.2471317 | L29: 2.1675771 | M29: 2.0890208 | N29: 2.0084681 | O29: 1.9290495 | P29: 0.9036938 | Q29: 0.8680301 | R29: 0.8318745 | S29: 0.4024342 | T29: 0 | U29: 0 | V29: 0 | W29: 0 | X29: 0 | Y29: 0 | Z29: 0 | AA29: 0 | AB29: 0 | AC29: 0 | AD29: 0 | AE29: 0 | AF29: 0 | AG29: 0 | AH29: 0 | AI29: 0
D30: Islamic Development Bank (IsDB) | E30: =E70+E110 -> 4.304042067 | F30: 3.561047151 | G30: 3.362113429 | H30: 2.4234922 | I30: 0.8019165 | J30: 0.6505491 | K30: 0.6505491 | L30: 0.1608932 | M30: 0.0943853 | N30: 0.227401 | O30: 0.1608931 | P30: 0.1608931 | Q30: 0.1608931 | R30: 0.0772566 | S30: 0.1266357 | T30: 0.1266357 | U30: 0.0278774 | V30: 0.0278774 | W30: 0.0278774 | X30: 0 | Y30: 0 | Z30: 0 | AA30: 0 | AB30: 0 | AC30: 0 | AD30: 0 | AE30: 0 | AF30: 0 | AG30: 0 | AH30: 0 | AI30: 0
D31: European Investment Bank (EIB) | E31: =E71+E111 -> 0.4784806 | F31: 0.4353170028 | G31: 0.3488955 | H31: 0.3481533 | I31: 0.3483986772 | J31: 0.0235805 | K31: 0.0235476 | L31: 0.0235132 | M31: 0.0235376 | N31: 0.0235595 | O31: 0.0235789 | P31: 0.023596 | Q31: 0.0236107 | R31: 0.0235013 | S31: 0.01193630015 | T31: 0 | U31: 0 | V31: 0 | W31: 0 | X31: 0 | Y31: 0 | Z31: 0 | AA31: 0 | AB31: 0 | AC31: 0 | AD31: 0 | AE31: 0 | AF31: 0 | AG31: 0 | AH31: 0 | AI31: 0
D32: Worldbank (IBRD) | E32: =E72+E112 -> 0.0029018 | F32: 0.0028981 | G32: 0.0028981 | H32: 0.0028981 | I32: 0.002906 | J32: 0.0065135 | K32: 0.0063927 | L32: 0.0062719 | M32: 0.0061581 | N32: 0.0060304 | O32: 0.0059097 | P32: 0.0057889 | Q32: 0.0056738 | R32: 0.0055474 | S32: 0.0054267 | T32: 0.0053059 | U32: 0.0051895 | V32: 0.0050644 | W32: 0.0049437 | X32: 0.0048229 | Y32: 0.0047051 | Z32: 0.0045814 | AA32: 0.0044606 | AB32: 0.0043399 | AC32: 0.0042208 | AD32: 0.0040984 | AE32: 0.0039776 | AF32: 0.0038569 | AG32: 0.0037364 | AH32: 0 | AI32: 0
D33: Bilateral creditors | E33: =E73+E113 -> 38.81675223 | F33: 44.40914 | G33: 55.44955973 | H33: 53.44992293 | I33: 50.30634951 | J33: 49.13877922 | K33: 48.00563513 | L33: 46.82474163 | M33: 45.65777403 | N33: 32.29467926 | O33: 26.12403319 | P33: 24.65405049 | Q33: 24.13862359 | R33: 20.87331975 | S33: 20.40721085 | T33: 19.89339734 | U33: 13.15204923 | V33: 12.87723823 | W33: 0 | X33: 0 | Y33: 0 | Z33: 0 | AA33: 0 | AB33: 0 | AC33: 0 | AD33: 0 | AE33: 0 | AF33: 0 | AG33: 0 | AH33: 0 | AI33: 0
D34: China | E34: =E74+E114 -> 29.87377512 | F34: 35.70921622 | G34: 46.96524775 | H34: 45.48913395 | I34: 43.97544054 | J34: 42.87184054 | K34: 41.79336414 | L34: 40.71488794 | M34: 39.64971674 | N34: 27.83307644 | O34: 24.32136587 | P34: 23.82174167 | Q34: 23.32825837 | R34: 20.08554943 | S34: 19.64170973 | T34: 19.19787013 | U34: 12.52504293 | V34: 12.27076483 | W34: 0 | X34: 0 | Y34: 0 | Z34: 0 | AA34: 0 | AB34: 0 | AC34: 0 | AD34: 0 | AE34: 0 | AF34: 0 | AG34: 0 | AH34: 0 | AI34: 0
D35: France | E35: =E75+E115 -> 3.961272795 | F35: 3.828966365 | G35: 3.792137865 | H35: 3.754858165 | I35: 3.718207365 | J35: 3.728003274 | K35: 3.738428083 | L35: 3.701148483 | M35: 3.664089083 | N35: 2.550048519 | O35: 0.5969867186 | P35: 0.1031423186 | Q35: 0.1013394186 | R35: 0.09950151862 | S35: 0.09768111862 | T35: 0.04815610931 | U35: 0 | V35: 0 | W35: 0 | X35: 0 | Y35: 0 | Z35: 0 | AA35: 0 | AB35: 0 | AC35: 0 | AD35: 0 | AE35: 0 | AF35: 0 | AG35: 0 | AH35: 0 | AI35: 0
D36: India | E36: =E76+E116 -> 4.981704315 | F36: 4.870957415 | G36: 4.692174115 | H36: 4.205930815 | I36: 2.6127016 | J36: 2.5389354 | K36: 2.4738429 | L36: 2.4087052 | M36: 2.3439682 | N36: 1.9115543 | O36: 1.2056806 | P36: 0.7291665 | Q36: 0.7090258 | R36: 0.6882688 | S36: 0.66782 | T36: 0.6473711 | U36: 0.6270063 | V36: 0.6064734 | W36: 0 | X36: 0 | Y36: 0 | Z36: 0 | AA36: 0 | AB36: 0 | AC36: 0 | AD36: 0 | AE36: 0 | AF36: 0 | AG36: 0 | AH36: 0 | AI36: 0
D37: B. Local currency debt (B1+B2) | E37: =E77+E117 -> 630.7015675 | F37: 68.96021368 | G37: 8.480123829 | H37: 5.750482767 | I37: 4.416355138 | J37: 3.921010447 | K37: 3.757409102 | L37: 2.557676832 | M37: 0.4260783848 | N37: 0.4188741609 | O37: 0 | P37: 0 | Q37: 0 | R37: 0 | S37: 0 | T37: 0 | U37: 0 | V37: 0 | W37: 0 | X37: 0 | Y37: 0 | Z37: 0 | AA37: 0 | AB37: 0 | AC37: 0 | AD37: 0 | AE37: 0 | AF37: 0 | AG37: 0 | AH37: 0 | AI37: 0
D38: B1. Market debt (B1.1.+ B1.2.) | E38: =E78+E118 -> 98.96126332 | F38: 68.96021368 | G38: 8.480123829 | H38: 5.750482767 | I38: 4.416355138 | J38: 3.921010447 | K38: 3.757409102 | L38: 2.557676832 | M38: 0.4260783848 | N38: 0.4188741609 | O38: 0 | P38: 0 | Q38: 0 | R38: 0 | S38: 0 | T38: 0 | U38: 0 | V38: 0 | W38: 0 | X38: 0 | Y38: 0 | Z38: 0 | AA38: 0 | AB38: 0 | AC38: 0 | AD38: 0 | AE38: 0 | AF38: 0 | AG38: 0 | AH38: 0 | AI38: 0
D39: B1.1. Loans | E39: =E79+E119 -> 19.95248506 | F39: 19.13799059 | G39: 8.480123829 | H39: 5.750482767 | I39: 4.416355138 | J39: 3.921010447 | K39: 3.757409102 | L39: 2.557676832 | M39: 0.4260783848 | N39: 0.4188741609 | O39: 0 | P39: 0 | Q39: 0 | R39: 0 | S39: 0 | T39: 0 | U39: 0 | V39: 0 | W39: 0 | X39: 0 | Y39: 0 | Z39: 0 | AA39: 0 | AB39: 0 | AC39: 0 | AD39: 0 | AE39: 0 | AF39: 0 | AG39: 0 | AH39: 0 | AI39: 0
D40: Private sector/commercial banks FX-linked debt | E40: =E80+E120 -> 17.52393042 | F40: 16.12194504 | G40: 6.277188292 | H40: 4.616005361 | I40: 3.629716511 | J40: 3.47331939 | K40: 3.31692227 | L40: 2.124394224 | M40: 0 | N40: 0 | O40: 0 | P40: 0 | Q40: 0 | R40: 0 | S40: 0 | T40: 0 | U40: 0 | V40: 0 | W40: 0 | X40: 0 | Y40: 0 | Z40: 0 | AA40: 0 | AB40: 0 | AC40: 0 | AD40: 0 | AE40: 0 | AF40: 0 | AG40: 0 | AH40: 0 | AI40: 0
D41: Private sector/commercial banks non FX-linked debt | E41: =E81+E121 -> 2.428554636 | F41: 3.01604555 | G41: 2.202935537 | H41: 1.134477406 | I41: 0.7866386269 | J41: 0.4476910565 | K41: 0.4404868326 | L41: 0.4332826087 | M41: 0.4260783848 | N41: 0.4188741609 | O41: 0 | P41: 0 | Q41: 0 | R41: 0 | S41: 0 | T41: 0 | U41: 0 | V41: 0 | W41: 0 | X41: 0 | Y41: 0 | Z41: 0 | AA41: 0 | AB41: 0 | AC41: 0 | AD41: 0 | AE41: 0 | AF41: 0 | AG41: 0 | AH41: 0 | AI41: 0
D42: B1.2. T-Bonds and T-Bills | E42: =E82+E122 -> 79.00877826 | F42: 49.82222309 | G42: 0 | H42: 0 | I42: 0 | J42: 0 | K42: 0 | L42: 0 | M42: 0 | N42: 0 | O42: 0 | P42: 0 | Q42: 0 | R42: 0 | S42: 0 | T42: 0 | U42: 0 | V42: 0 | W42: 0 | X42: 0 | Y42: 0 | Z42: 0 | AA42: 0 | AB42: 0 | AC42: 0 | AD42: 0 | AE42: 0 | AF42: 0 | AG42: 0 | AH42: 0 | AI42: 0
D43: T-Bonds | E43: =E83+E123 -> 16.8267213 | F43: 49.82222309 | G43: 0 | H43: 0 | I43: 0 | J43: 0 | K43: 0 | L43: 0 | M43: 0 | N43: 0 | O43: 0 | P43: 0 | Q43: 0 | R43: 0 | S43: 0 | T43: 0 | U43: 0 | V43: 0 | W43: 0 | X43: 0 | Y43: 0 | Z43: 0 | AA43: 0 | AB43: 0 | AC43: 0 | AD43: 0 | AE43: 0 | AF43: 0 | AG43: 0 | AH43: 0 | AI43: 0
D44: T-Bills | E44: =E84+E124 -> 62.18205696 | F44: 0 | G44: 0 | H44: 0 | I44: 0 | J44: 0 | K44: 0 | L44: 0 | M44: 0 | N44: 0 | O44: 0 | P44: 0 | Q44: 0 | R44: 0 | S44: 0 | T44: 0 | U44: 0 | V44: 0 | W44: 0 | X44: 0 | Y44: 0 | Z44: 0 | AA44: 0 | AB44: 0 | AC44: 0 | AD44: 0 | AE44: 0 | AF44: 0 | AG44: 0 | AH44: 0 | AI44: 0
D45: B2. Non-market debt | E45: =E85+E125 -> 531.7403042 | F45: 0 | G45: 0 | H45: 0 | I45: 0 | J45: 0 | K45: 0 | L45: 0 | M45: 0 | N45: 0 | O45: 0 | P45: 0 | Q45: 0 | R45: 0 | S45: 0 | T45: 0 | U45: 0 | V45: 0 | W45: 0 | X45: 0 | Y45: 0 | Z45: 0 | AA45: 0 | AB45: 0 | AC45: 0 | AD45: 0 | AE45: 0 | AF45: 0 | AG45: 0 | AH45: 0 | AI45: 0
D46: Central Bank | E46: =E86+E126 -> 531.7403042 | F46: 0 | G46: 0 | H46: 0 | I46: 0 | J46: 0 | K46: 0 | L46: 0 | M46: 0 | N46: 0 | O46: 0 | P46: 0 | Q46: 0 | R46: 0 | S46: 0 | T46: 0 | U46: 0 | V46: 0 | W46: 0 | X46: 0 | Y46: 0 | Z46: 0 | AA46: 0 | AB46: 0 | AC46: 0 | AD46: 0 | AE46: 0 | AF46: 0 | AG46: 0 | AH46: 0 | AI46: 0
B49: =MAX($B$1:B48)+1 -> 2 | D49: Central Government Contractual Principal Payments on Dec-2019 outstanding debt stock (USDm)
E51: 2020 | F51: =E51+1 -> 2021 | G51: =F51+1 -> 2022 | H51: =G51+1 -> 2023 | I51: =H51+1 -> 2024 | J51: =I51+1 -> 2025 | K51: =J51+1 -> 2026 | L51: =K51+1 -> 2027 | M51: =L51+1 -> 2028 | N51: =M51+1 -> 2029 | O51: =N51+1 -> 2030 | P51: =O51+1 -> 2031 | Q51: =P51+1 -> 2032 | R51: =Q51+1 -> 2033 | S51: =R51+1 -> 2034 | T51: =S51+1 -> 2035 | U51: =T51+1 -> 2036 | V51: =U51+1 -> 2037 | W51: =V51+1 -> 2038 | X51: =W51+1 -> 2039 | Y51: =X51+1 -> 2040 | Z51: =Y51+1 -> 2041 | AA51: =Z51+1 -> 2042 | AB51: =AA51+1 -> 2043 | AC51: =AB51+1 -> 2044 | AD51: =AC51+1 -> 2045 | AE51: =AD51+1 -> 2046 | AF51: =AE51+1 -> 2047 | AG51: =AF51+1 -> 2048 | AH51: =AG51+1 -> 2049 | AI51: =AH51+1 -> 2050
D53: Total Central Government debt | E53: =E55+E77 -> 817.7863882 | F53: 225.3296271 | G53: 160.3977143 | H53: 255.3588017 | I53: 110.1132736 | J53: 107.4235536 | K53: 656.186461 | L53: 99.88728791 | M53: 92.08637525 | N53: 75.26421508 | O53: 62.66346601 | P53: 60.09097714 | Q53: 54.82120153 | R53: 44.6337995 | S53: 33.77315701 | T53: 30.23595889 | U53: 21.10415268 | V53: 18.66158528 | W53: 4.237703439 | X53: 3.856532339 | Y53: 2.766966839 | Z53: 1.256938048 | AA53: 0.483129774 | AB53: 0.0036458 | AC53: 0.0036458 | AD53: 0.0036458 | AE53: 0.0036458 | AF53: 0.0036458 | AG53: 0.0036458 | AH53: 4.34 | AI53: 0
D55: A. Foreign currency debt (A1+A2) | E55: =E56+E65 -> 246.561483 | F55: 163.5465218 | G55: 152.9874992 | H55: 250.374302 | I55: 106.2475621 | J55: 103.8839413 | K55: 652.6468487 | L55: 97.39032303 | M55: 91.67470531 | N55: 74.85254514 | O55: 62.66346601 | P55: 60.09097714 | Q55: 54.82120153 | R55: 44.6337995 | S55: 33.77315701 | T55: 30.23595889 | U55: 21.10415268 | V55: 18.66158528 | W55: 4.237703439 | X55: 3.856532339 | Y55: 2.766966839 | Z55: 1.256938048 | AA55: 0.483129774 | AB55: 0.0036458 | AC55: 0.0036458 | AD55: 0.0036458 | AE55: 0.0036458 | AF55: 0.0036458 | AG55: 0.0036458 | AH55: 4.34 | AI55: 0
D56: A1. Market debt | E56: =E57+E60+E61+E64 -> 181.7653537 | F56: 87.52482851 | G56: 61.21688191 | H56: 159.6836001 | I56: 19.05468149 | J56: 17.06243857 | K56: 565.8496352 | L56: 12.39285683 | M56: 9.325520966 | N56: 7.713365054 | O56: 1.676962597 | P56: 1.082308254 | Q56: 0.8298053097 | R56: 0 | S56: 0 | T56: 0 | U56: 0 | V56: 0 | W56: 0 | X56: 0 | Y56: 0 | Z56: 0 | AA56: 0 | AB56: 0 | AC56: 0 | AD56: 0 | AE56: 0 | AF56: 0 | AG56: 0 | AH56: 0 | AI56: 0
D57: Capital market debt - Foreign law | E57: =SUM(E58:E59) -> 15 | F57: =SUM(F58:F59) -> 36.66666667 | G57: 36.66666667 | H57: 36.66666667 | I57: 0 | J57: 0 | K57: 550 | L57: 0 | M57: 0 | N57: 0 | O57: 0 | P57: 0 | Q57: 0 | R57: 0 | S57: 0 | T57: 0 | U57: 0 | V57: 0 | W57: 0 | X57: 0 | Y57: 0 | Z57: 0 | AA57: 0 | AB57: 0 | AC57: 0 | AD57: 0 | AE57: 0 | AF57: 0 | AG57: 0 | AH57: 0 | AI57: 0
D58: Eurobond 2023 (no "IMF condition") | E58: 15 | F58: 36.66666667 | G58: 36.66666667 | H58: 36.66666667 | I58: 0 | J58: 0 | K58: 0 | L58: 0 | M58: 0 | N58: 0 | O58: 0 | P58: 0 | Q58: 0 | R58: 0 | S58: 0 | T58: 0 | U58: 0 | V58: 0 | W58: 0 | X58: 0 | Y58: 0 | Z58: 0 | AA58: 0 | AB58: 0 | AC58: 0 | AD58: 0 | AE58: 0 | AF58: 0 | AG58: 0 | AH58: 0 | AI58: 0
D59: Eurobond 2026 | E59: 0 | F59: 0 | G59: 0 | H59: 0 | I59: 0 | J59: 0 | K59: 550 | L59: 0 | M59: 0 | N59: 0 | O59: 0 | P59: 0 | Q59: 0 | R59: 0 | S59: 0 | T59: 0 | U59: 0 | V59: 0 | W59: 0 | X59: 0 | Y59: 0 | Z59: 0 | AA59: 0 | AB59: 0 | AC59: 0 | AD59: 0 | AE59: 0 | AF59: 0 | AG59: 0 | AH59: 0 | AI59: 0
D60: Commercial creditors - Foreign law | E60: 22.58942804 | F60: 23.16303977 | G60: 16.32329808 | H60: 17.42086622 | I60: 16.3076703 | J60: 14.19672978 | K60: 12.85790766 | L60: 10.37947145 | M60: 9.046102294 | N60: 7.713365054 | O60: 1.676962597 | P60: 1.082308254 | Q60: 0.8298053097 | R60: 0 | S60: 0 | T60: 0 | U60: 0 | V60: 0 | W60: 0 | X60: 0 | Y60: 0 | Z60: 0 | AA60: 0 | AB60: 0 | AC60: 0 | AD60: 0 | AE60: 0 | AF60: 0 | AG60: 0 | AH60: 0 | AI60: 0
D61: Capital market debt - Local law | E61: =E62+E63 -> 21.19244919 | F61: =F62+F63 -> 12.48078862 | G61: 0 | H61: 99.88031576 | I61: 0 | J61: 0 | K61: 0 | L61: 0 | M61: 0 | N61: 0 | O61: 0 | P61: 0 | Q61: 0 | R61: 0 | S61: 0 | T61: 0 | U61: 0 | V61: 0 | W61: 0 | X61: 0 | Y61: 0 | Z61: 0 | AA61: 0 | AB61: 0 | AC61: 0 | AD61: 0 | AE61: 0 | AF61: 0 | AG61: 0 | AH61: 0 | AI61: 0
D62: T-Bonds | E62: 14.60098577 | F62: 12.48078862 | G62: 0 | H62: 99.88031576 | I62: 0 | J62: 0 | K62: 0 | L62: 0 | M62: 0 | N62: 0 | O62: 0 | P62: 0 | Q62: 0 | R62: 0 | S62: 0 | T62: 0 | U62: 0 | V62: 0 | W62: 0 | X62: 0 | Y62: 0 | Z62: 0 | AA62: 0 | AB62: 0 | AC62: 0 | AD62: 0 | AE62: 0 | AF62: 0 | AG62: 0 | AH62: 0 | AI62: 0
D63: T-Bills | E63: 6.591463415 | F63: 0 | G63: 0 | H63: 0 | I63: 0 | J63: 0 | K63: 0 | L63: 0 | M63: 0 | N63: 0 | O63: 0 | P63: 0 | Q63: 0 | R63: 0 | S63: 0 | T63: 0 | U63: 0 | V63: 0 | W63: 0 | X63: 0 | Y63: 0 | Z63: 0 | AA63: 0 | AB63: 0 | AC63: 0 | AD63: 0 | AE63: 0 | AF63: 0 | AG63: 0 | AH63: 0 | AI63: 0
D64: Commercial creditors - Local law | E64: 122.9834764 | F64: 15.21433346 | G64: 8.226917172 | H64: 5.715751472 | I64: 2.747011196 | J64: 2.865708796 | K64: 2.991727496 | L64: 2.013385371 | M64: 0.2794186722 | N64: 0 | O64: 0 | P64: 0 | Q64: 0 | R64: 0 | S64: 0 | T64: 0 | U64: 0 | V64: 0 | W64: 0 | X64: 0 | Y64: 0 | Z64: 0 | AA64: 0 | AB64: 0 | AC64: 0 | AD64: 0 | AE64: 0 | AF64: 0 | AG64: 0 | AH64: 0 | AI64: 0
D65: A2. Non-market debt | E65: =E66+E73 -> 64.79612936 | F65: 76.02169328 | G65: 91.77061724 | H65: 90.6907019 | I65: 87.19288056 | J65: 86.82150269 | K65: 86.7972135 | L65: 84.9974662 | M65: 82.34918434 | N65: 67.13918009 | O65: 60.98650342 | P65: 59.00866889 | Q65: 53.99139622 | R65: 44.6337995 | S65: 33.77315701 | T65: 30.23595889 | U65: 21.10415268 | V65: 18.66158528 | W65: 4.237703439 | X65: 3.856532339 | Y65: 2.766966839 | Z65: 1.256938048 | AA65: 0.483129774 | AB65: 0.0036458 | AC65: 0.0036458 | AD65: 0.0036458 | AE65: 0.0036458 | AF65: 0.0036458 | AG65: 0.0036458 | AH65: 4.34 | AI65: 0
D66: Multilateral creditors | E66: =SUM(E67:E72) -> 39.60011913 | F66: =SUM(F67:F72) -> 44.71880128 | G66: 48.45809821 | H66: 48.21927468 | I66: 46.67929115 | J66: 46.26020858 | K66: 46.18821468 | L66: 44.38846738 | M66: 41.74018552 | N66: 38.82679873 | O66: 38.25266263 | P66: 37.2118273 | Q66: 32.19455463 | R66: 25.58796245 | S66: 14.72731997 | T66: 11.23782655 | U66: 8.431442754 | V66: 5.988875354 | W66: 4.237703439 | X66: 3.856532339 | Y66: 2.766966839 | Z66: 1.256938048 | AA66: 0.483129774 | AB66: 0.0036458 | AC66: 0.0036458 | AD66: 0.0036458 | AE66: 0.0036458 | AF66: 0.0036458 | AG66: 0.0036458 | AH66: 4.34 | AI66: 0
D67: Inter American Development Bank (IADB) | E67: 28.02249855 | F67: 33.67802303 | G67: 36.76473633 | H67: 37.18639062 | I67: 37.18639062 | J67: 37.19702492 | K67: 37.09194022 | L67: 35.75501772 | M67: 35.66702456 | N67: 35.12560767 | O67: 34.61137898 | P67: 34.61137898 | Q67: 30.61137898 | R67: 24.0859151 | S67: 14.10653107 | T67: 11.11217135 | U67: 8.403392554 | V67: 5.959614654 | W67: 4.207172239 | X67: 3.852886539 | Y67: 2.763321039 | Z67: 1.253292248 | AA67: 0.479483974 | AB67: 0 | AC67: 0 | AD67: 0 | AE67: 0 | AF67: 0 | AG67: 0 | AH67: 4.34 | AI67: 0
D68: Caribbean Development Bank (CDB) | E68: 5.8425457 | F68: 5.9314047 | G68: 6.724803753 | H68: 6.724803753 | I68: 6.724803753 | J68: 6.724803753 | K68: 6.724803753 | L68: 6.724803753 | M68: 4.224803753 | N68: 1.724803752 | O68: 1.724803752 | P68: 1.637881722 | Q68: 0.6176461525 | R68: 0.6176461525 | S68: 0.0908243 | T68: 0 | U68: 0 | V68: 0 | W68: 0 | X68: 0 | Y68: 0 | Z68: 0 | AA68: 0 | AB68: 0 | AC68: 0 | AD68: 0 | AE68: 0 | AF68: 0 | AG68: 0 | AH68: 0 | AI68: 0
D69: Organization of the Petroleum Exporting Countries (OPEC) | E69: 1.7436612 | F69: 1.7436612 | G69: 1.7436612 | H69: 1.7436612 | I69: 1.7436612 | J69: 1.7436612 | K69: 1.7436612 | L69: 1.7436612 | M69: 1.7436612 | N69: 1.7436612 | O69: 1.7437972 | P69: 0.7870612 | Q69: 0.7870612 | R69: 0.7870612 | S69: 0.3935306 | T69: 0 | U69: 0 | V69: 0 | W69: 0 | X69: 0 | Y69: 0 | Z69: 0 | AA69: 0 | AB69: 0 | AC69: 0 | AD69: 0 | AE69: 0 | AF69: 0 | AG69: 0 | AH69: 0 | AI69: 0
D70: Islamic Development Bank (IsDB) | E70: 3.532845076 | F70: 2.945888451 | G70: 2.887501129 | H70: 2.2243829 | I70: 0.6807488 | J70: 0.5695691 | K70: 0.6024771 | L70: 0.1394696 | M70: 0.0789372 | N70: 0.2067236 | O70: 0.1464366 | P70: 0.1490156 | Q70: 0.1517348 | R70: 0.0704847 | S70: 0.1209107 | T70: 0.1220094 | U70: 0.0244044 | V70: 0.0256149 | W70: 0.0268854 | X70: 0 | Y70: 0 | Z70: 0 | AA70: 0 | AB70: 0 | AC70: 0 | AD70: 0 | AE70: 0 | AF70: 0 | AG70: 0 | AH70: 0 | AI70: 0
D71: European Investment Bank (EIB) | E71: 0.4585686 | F71: 0.4198239028 | G71: 0.3373958 | H71: 0.3400362 | I71: 0.3436867772 | J71: 0.0215038 | K71: 0.0216866 | L71: 0.0218693 | M71: 0.022113 | N71: 0.0223567 | O71: 0.0226003 | P71: 0.022844 | Q71: 0.0230877 | R71: 0.0232095 | S71: 0.01187750015 | T71: 0 | U71: 0 | V71: 0 | W71: 0 | X71: 0 | Y71: 0 | Z71: 0 | AA71: 0 | AB71: 0 | AC71: 0 | AD71: 0 | AE71: 0 | AF71: 0 | AG71: 0 | AH71: 0 | AI71: 0
D72: Worldbank (IBRD) | E72: 0 | F72: 0 | G72: 0 | H72: 0 | I72: 0 | J72: 0.0036458 | K72: 0.0036458 | L72: 0.0036458 | M72: 0.0036458 | N72: 0.0036458 | O72: 0.0036458 | P72: 0.0036458 | Q72: 0.0036458 | R72: 0.0036458 | S72: 0.0036458 | T72: 0.0036458 | U72: 0.0036458 | V72: 0.0036458 | W72: 0.0036458 | X72: 0.0036458 | Y72: 0.0036458 | Z72: 0.0036458 | AA72: 0.0036458 | AB72: 0.0036458 | AC72: 0.0036458 | AD72: 0.0036458 | AE72: 0.0036458 | AF72: 0.0036458 | AG72: 0.0036458 | AH72: 0 | AI72: 0
D73: Bilateral creditors | E73: =SUM(E74:E76) -> 25.19601023 | F73: =SUM(F74:F76) -> 31.302892 | G73: 43.31251903 | H73: 42.47142723 | I73: 40.51358941 | J73: 40.56129412 | K73: 40.60899883 | L73: 40.60899883 | M73: 40.60899883 | N73: 28.31238136 | O73: 22.73384079 | P73: 21.79684159 | Q73: 21.79684159 | R73: 19.04583705 | S73: 19.04583705 | T73: 18.99813234 | U73: 12.67270993 | V73: 12.67270993 | W73: 0 | X73: 0 | Y73: 0 | Z73: 0 | AA73: 0 | AB73: 0 | AC73: 0 | AD73: 0 | AE73: 0 | AF73: 0 | AG73: 0 | AH73: 0 | AI73: 0
D74: China | E74: 17.51706182 | F74: 23.79477952 | G74: 35.87639475 | H74: 35.41605365 | I74: 34.95571254 | J74: 34.95571254 | K74: 34.95571254 | L74: 34.95571254 | M74: 34.95571254 | N74: 24.10384134 | O74: 21.11033747 | P74: 21.11033747 | Q74: 21.11033747 | R74: 18.35933293 | S74: 18.35933293 | T74: 18.35933293 | U74: 12.08161523 | V74: 12.08161523 | W74: 0 | X74: 0 | Y74: 0 | Z74: 0 | AA74: 0 | AB74: 0 | AC74: 0 | AD74: 0 | AE74: 0 | AF74: 0 | AG74: 0 | AH74: 0 | AI74: 0
D75: France | E75: 3.591928895 | F75: 3.497335865 | G75: 3.497335865 | H75: 3.497335865 | I75: 3.497335865 | J75: 3.545040574 | K75: 3.592745283 | L75: 3.592745283 | M75: 3.592745283 | N75: 2.516205019 | O75: 0.5840354186 | P75: 0.09540941862 | Q75: 0.09540941862 | R75: 0.09540941862 | S75: 0.09540941862 | T75: 0.04770470931 | U75: 0 | V75: 0 | W75: 0 | X75: 0 | Y75: 0 | Z75: 0 | AA75: 0 | AB75: 0 | AC75: 0 | AD75: 0 | AE75: 0 | AF75: 0 | AG75: 0 | AH75: 0 | AI75: 0
D76: India | E76: 4.087019515 | F76: 4.010776615 | G76: 3.938788415 | H76: 3.558037715 | I76: 2.060541 | J76: 2.060541 | K76: 2.060541 | L76: 2.060541 | M76: 2.060541 | N76: 1.692335 | O76: 1.0394679 | P76: 0.5910947 | Q76: 0.5910947 | R76: 0.5910947 | S76: 0.5910947 | T76: 0.5910947 | U76: 0.5910947 | V76: 0.5910947 | W76: 0 | X76: 0 | Y76: 0 | Z76: 0 | AA76: 0 | AB76: 0 | AC76: 0 | AD76: 0 | AE76: 0 | AF76: 0 | AG76: 0 | AH76: 0 | AI76: 0
D77: B. Local currency debt (B1+B2) | E77: =E78+E85 -> 571.2249052 | F77: 61.78310528 | G77: 7.410215137 | H77: 4.984499649 | I77: 3.865711508 | J77: 3.539612352 | K77: 3.539612352 | L77: 2.496964881 | M77: 0.411669937 | N77: 0.411669937 | O77: 0 | P77: 0 | Q77: 0 | R77: 0 | S77: 0 | T77: 0 | U77: 0 | V77: 0 | W77: 0 | X77: 0 | Y77: 0 | Z77: 0 | AA77: 0 | AB77: 0 | AC77: 0 | AD77: 0 | AE77: 0 | AF77: 0 | AG77: 0 | AH77: 0 | AI77: 0
D78: B1. Market debt (B1.1.+ B1.2.) | E78: =E79+E82 -> 83.38976374 | F78: 61.78310528 | G78: 7.410215137 | H78: 4.984499649 | I78: 3.865711508 | J78: 3.539612352 | K78: 3.539612352 | L78: 2.496964881 | M78: 0.411669937 | N78: 0.411669937 | O78: 0 | P78: 0 | Q78: 0 | R78: 0 | S78: 0 | T78: 0 | U78: 0 | V78: 0 | W78: 0 | X78: 0 | Y78: 0 | Z78: 0 | AA78: 0 | AB78: 0 | AC78: 0 | AD78: 0 | AE78: 0 | AF78: 0 | AG78: 0 | AH78: 0 | AI78: 0
D79: B1.1. Loans | E79: =E80+E81 -> 17.97205361 | F79: 17.34695578 | G79: 7.410215137 | H79: 4.984499649 | I79: 3.865711508 | J79: 3.539612352 | K79: 3.539612352 | L79: 2.496964881 | M79: 0.411669937 | N79: 0.411669937 | O79: 0 | P79: 0 | Q79: 0 | R79: 0 | S79: 0 | T79: 0 | U79: 0 | V79: 0 | W79: 0 | X79: 0 | Y79: 0 | Z79: 0 | AA79: 0 | AB79: 0 | AC79: 0 | AD79: 0 | AE79: 0 | AF79: 0 | AG79: 0 | AH79: 0 | AI79: 0
D80: Private sector/commercial banks FX-linked debt | E80: 16.04419322 | F80: 14.68091795 | G80: 5.363992887 | H80: 3.928672766 | I80: 3.127942415 | J80: 3.127942415 | K80: 3.127942415 | L80: 2.085294944 | M80: 0 | N80: 0 | O80: 0 | P80: 0 | Q80: 0 | R80: 0 | S80: 0 | T80: 0 | U80: 0 | V80: 0 | W80: 0 | X80: 0 | Y80: 0 | Z80: 0 | AA80: 0 | AB80: 0 | AC80: 0 | AD80: 0 | AE80: 0 | AF80: 0 | AG80: 0 | AH80: 0 | AI80: 0
D81: Private sector/commercial banks non FX-linked debt | E81: 1.927860392 | F81: 2.666037822 | G81: 2.04622225 | H81: 1.055826883 | I81: 0.7377690922 | J81: 0.411669937 | K81: 0.411669937 | L81: 0.411669937 | M81: 0.411669937 | N81: 0.411669937 | O81: 0 | P81: 0 | Q81: 0 | R81: 0 | S81: 0 | T81: 0 | U81: 0 | V81: 0 | W81: 0 | X81: 0 | Y81: 0 | Z81: 0 | AA81: 0 | AB81: 0 | AC81: 0 | AD81: 0 | AE81: 0 | AF81: 0 | AG81: 0 | AH81: 0 | AI81: 0
D82: B1.2. T-Bonds and T-Bills | E82: =E83+E84 -> 65.41771013 | F82: =F83+F84 -> 44.4361495 | G82: =G83+G84 -> 0 | H82: =H83+H84 -> 0 | I82: 0 | J82: 0 | K82: 0 | L82: 0 | M82: 0 | N82: 0 | O82: 0 | P82: 0 | Q82: 0 | R82: 0 | S82: 0 | T82: 0 | U82: 0 | V82: 0 | W82: 0 | X82: 0 | Y82: 0 | Z82: 0 | AA82: 0 | AB82: 0 | AC82: 0 | AD82: 0 | AE82: 0 | AF82: 0 | AG82: 0 | AH82: 0 | AI82: 0
D83: T-Bonds | E83: 9.210994069 | F83: 44.4361495 | G83: 0 | H83: 0 | I83: 0 | J83: 0 | K83: 0 | L83: 0 | M83: 0 | N83: 0 | O83: 0 | P83: 0 | Q83: 0 | R83: 0 | S83: 0 | T83: 0 | U83: 0 | V83: 0 | W83: 0 | X83: 0 | Y83: 0 | Z83: 0 | AA83: 0 | AB83: 0 | AC83: 0 | AD83: 0 | AE83: 0 | AF83: 0 | AG83: 0 | AH83: 0 | AI83: 0
D84: T-Bills | E84: 56.20671606 | F84: 0 | G84: 0 | H84: 0 | I84: 0 | J84: 0 | K84: 0 | L84: 0 | M84: 0 | N84: 0 | O84: 0 | P84: 0 | Q84: 0 | R84: 0 | S84: 0 | T84: 0 | U84: 0 | V84: 0 | W84: 0 | X84: 0 | Y84: 0 | Z84: 0 | AA84: 0 | AB84: 0 | AC84: 0 | AD84: 0 | AE84: 0 | AF84: 0 | AG84: 0 | AH84: 0 | AI84: 0
D85: B2. Non-market debt | E85: =E86 -> 487.8351415 | F85: =F86 -> 0 | G85: 0 | H85: 0 | I85: 0 | J85: 0 | K85: 0 | L85: 0 | M85: 0 | N85: 0 | O85: 0 | P85: 0 | Q85: 0 | R85: 0 | S85: 0 | T85: 0 | U85: 0 | V85: 0 | W85: 0 | X85: 0 | Y85: 0 | Z85: 0 | AA85: 0 | AB85: 0 | AC85: 0 | AD85: 0 | AE85: 0 | AF85: 0 | AG85: 0 | AH85: 0 | AI85: 0
D86: Central Bank | E86: 487.8351415 | F86: 0 | G86: 0 | H86: 0 | I86: 0 | J86: 0 | K86: 0 | L86: 0 | M86: 0 | N86: 0 | O86: 0 | P86: 0 | Q86: 0 | R86: 0 | S86: 0 | T86: 0 | U86: 0 | V86: 0 | W86: 0 | X86: 0 | Y86: 0 | Z86: 0 | AA86: 0 | AB86: 0 | AC86: 0 | AD86: 0 | AE86: 0 | AF86: 0 | AG86: 0 | AH86: 0 | AI86: 0
B89: =MAX($B$1:B88)+1 -> 3 | D89: Central Government Contractual Interest Payments on Dec-2019 outstanding debt stock (USDm)
E91: 2020 | F91: =E91+1 -> 2021 | G91: =F91+1 -> 2022 | H91: =G91+1 -> 2023 | I91: =H91+1 -> 2024 | J91: =I91+1 -> 2025 | K91: =J91+1 -> 2026 | L91: =K91+1 -> 2027 | M91: =L91+1 -> 2028 | N91: =M91+1 -> 2029 | O91: =N91+1 -> 2030 | P91: =O91+1 -> 2031 | Q91: =P91+1 -> 2032 | R91: =Q91+1 -> 2033 | S91: =R91+1 -> 2034 | T91: =S91+1 -> 2035 | U91: =T91+1 -> 2036 | V91: =U91+1 -> 2037 | W91: =V91+1 -> 2038 | X91: =W91+1 -> 2039 | Y91: =X91+1 -> 2040 | Z91: =Y91+1 -> 2041 | AA91: =Z91+1 -> 2042 | AB91: =AA91+1 -> 2043 | AC91: =AB91+1 -> 2044 | AD91: =AC91+1 -> 2045 | AE91: =AD91+1 -> 2046 | AF91: =AE91+1 -> 2047 | AG91: =AF91+1 -> 2048 | AH91: =AG91+1 -> 2049 | AI91: =AH91+1 -> 2050
D93: Total Central Government debt | E93: =E95+E117 -> 186.5938555 | F93: 125.2710996 | G93: 110.2866025 | H93: 101.1727969 | I93: 81.57236931 | J93: 77.55012859 | K93: 73.67131963 | L93: 18.97972882 | M93: 15.59129125 | N93: 12.58353432 | O93: 10.2286485 | P93: 8.2084507 | Q93: 6.3158548 | R93: 4.6096541 | S93: 3.1167128 | T93: 2.1577249 | U93: 1.3442054 | V93: 0.806478 | W93: 0.4069942 | X93: 0.2609371 | Y93: 0.1314596 | Z93: 0.0526019 | AA93: 0.0186851 | AB93: 0.0115441 | AC93: 0.0114547 | AD93: 0.0113026 | AE93: 0.0111818 | AF93: 0.0110611 | AG93: 0.0109703 | AH93: 0.0053804 | AI93: 0
D95: A. Foreign currency debt (A1+A2) | E95: =E96+E105 -> 127.1171932 | F95: 118.0939912 | G95: 109.2166938 | H95: 100.4068138 | I95: 81.02172568 | J95: 77.1687305 | K95: 73.45352288 | L95: 18.91901687 | M95: 15.5768828 | N95: 12.5763301 | O95: 10.2286485 | P95: 8.2084507 | Q95: 6.3158548 | R95: 4.6096541 | S95: 3.1167128 | T95: 2.1577249 | U95: 1.3442054 | V95: 0.806478 | W95: 0.4069942 | X95: 0.2609371 | Y95: 0.1314596 | Z95: 0.0526019 | AA95: 0.0186851 | AB95: 0.0115441 | AC95: 0.0114547 | AD95: 0.0113026 | AE95: 0.0111818 | AF95: 0.0110611 | AG95: 0.0109703 | AH95: 0.0053804 | AI95: 0
D96: A1. Market debt | E96: =E97+E100+E101+E104 -> 89.4348221 | F96: 82.21683563 | G96: 76.15317292 | H96: 70.56351619 | I96: 54.19019838 | J96: 53.4286898 | K96: 52.71695998 | L96: 1.164694967 | M96: 0.695074 | N96: 0.3261739 | O96: 0.0533701 | P96: 0.0269368 | Q96: 0.0101053 | R96: 0 | S96: 0 | T96: 0 | U96: 0 | V96: 0 | W96: 0 | X96: 0 | Y96: 0 | Z96: 0 | AA96: 0 | AB96: 0 | AC96: 0 | AD96: 0 | AE96: 0 | AF96: 0 | AG96: 0 | AH96: 0 | AI96: 0
D97: Capital market debt - Foreign law | E97: =E98+E99 -> 67.41579861 | F97: =F98+F99 -> 63.85729167 | G97: 59.13645833 | H97: 54.415625 | I97: 50.875 | J97: 50.875 | K97: 50.875 | L97: 0 | M97: 0 | N97: 0 | O97: 0 | P97: 0 | Q97: 0 | R97: 0 | S97: 0 | T97: 0 | U97: 0 | V97: 0 | W97: 0 | X97: 0 | Y97: 0 | Z97: 0 | AA97: 0 | AB97: 0 | AC97: 0 | AD97: 0 | AE97: 0 | AF97: 0 | AG97: 0 | AH97: 0 | AI97: 0
D98: Eurobond 2023 (no "IMF condition") | E98: 16.54079861 | F98: 12.98229167 | G98: 8.261458333 | H98: 3.540625 | I98: 0 | J98: 0 | K98: 0 | L98: 0 | M98: 0 | N98: 0 | O98: 0 | P98: 0 | Q98: 0 | R98: 0 | S98: 0 | T98: 0 | U98: 0 | V98: 0 | W98: 0 | X98: 0 | Y98: 0 | Z98: 0 | AA98: 0 | AB98: 0 | AC98: 0 | AD98: 0 | AE98: 0 | AF98: 0 | AG98: 0 | AH98: 0 | AI98: 0
D99: Eurobond 2026 | E99: 50.875 | F99: 50.875 | G99: 50.875 | H99: 50.875 | I99: 50.875 | J99: 50.875 | K99: 50.875 | L99: 0 | M99: 0 | N99: 0 | O99: 0 | P99: 0 | Q99: 0 | R99: 0 | S99: 0 | T99: 0 | U99: 0 | V99: 0 | W99: 0 | X99: 0 | Y99: 0 | Z99: 0 | AA99: 0 | AB99: 0 | AC99: 0 | AD99: 0 | AE99: 0 | AF99: 0 | AG99: 0 | AH99: 0 | AI99: 0
D100: Commercial creditors - Foreign law | E100: 5.2842089 | F100: 4.5292537 | G100: 3.8271316 | H100: 3.2567672 | I100: 2.6653426 | J100: 2.1010756 | K100: 1.593136 | L100: 1.1147891 | M100: 0.695074 | N100: 0.3261739 | O100: 0.0533701 | P100: 0.0269368 | Q100: 0.0101053 | R100: 0 | S100: 0 | T100: 0 | U100: 0 | V100: 0 | W100: 0 | X100: 0 | Y100: 0 | Z100: 0 | AA100: 0 | AB100: 0 | AC100: 0 | AD100: 0 | AE100: 0 | AF100: 0 | AG100: 0 | AH100: 0 | AI100: 0
D101: Capital market debt - Local law | E101: =E102+E103 -> 13.16047698 | F101: 12.17823716 | G101: 11.79669773 | H101: 11.79669773 | I101: 0 | J101: 0 | K101: 0 | L101: 0 | M101: 0 | N101: 0 | O101: 0 | P101: 0 | Q101: 0 | R101: 0 | S101: 0 | T101: 0 | U101: 0 | V101: 0 | W101: 0 | X101: 0 | Y101: 0 | Z101: 0 | AA101: 0 | AB101: 0 | AC101: 0 | AD101: 0 | AE101: 0 | AF101: 0 | AG101: 0 | AH101: 0 | AI101: 0
D102: T-Bonds | E102: 12.9081904 | F102: 12.17823716 | G102: 11.79669773 | H102: 11.79669773 | I102: 0 | J102: 0 | K102: 0 | L102: 0 | M102: 0 | N102: 0 | O102: 0 | P102: 0 | Q102: 0 | R102: 0 | S102: 0 | T102: 0 | U102: 0 | V102: 0 | W102: 0 | X102: 0 | Y102: 0 | Z102: 0 | AA102: 0 | AB102: 0 | AC102: 0 | AD102: 0 | AE102: 0 | AF102: 0 | AG102: 0 | AH102: 0 | AI102: 0
D103: T-Bills | E103: 0.2522865854 | F103: 0 | G103: 0 | H103: 0 | I103: 0 | J103: 0 | K103: 0 | L103: 0 | M103: 0 | N103: 0 | O103: 0 | P103: 0 | Q103: 0 | R103: 0 | S103: 0 | T103: 0 | U103: 0 | V103: 0 | W103: 0 | X103: 0 | Y103: 0 | Z103: 0 | AA103: 0 | AB103: 0 | AC103: 0 | AD103: 0 | AE103: 0 | AF103: 0 | AG103: 0 | AH103: 0 | AI103: 0
D104: Commercial creditors - Local law | E104: 3.574337609 | F104: 1.652053098 | G104: 1.392885256 | H104: 1.094426253 | I104: 0.6498557814 | J104: 0.4526141963 | K104: 0.2488239815 | L104: 0.04990586673 | M104: 0 | N104: 0 | O104: 0 | P104: 0 | Q104: 0 | R104: 0 | S104: 0 | T104: 0 | U104: 0 | V104: 0 | W104: 0 | X104: 0 | Y104: 0 | Z104: 0 | AA104: 0 | AB104: 0 | AC104: 0 | AD104: 0 | AE104: 0 | AF104: 0 | AG104: 0 | AH104: 0 | AI104: 0
D105: A2. Non-market debt | E105: =E106+E113 -> 37.68237109 | F105: 35.8771556 | G105: 33.0635209 | H105: 29.8432976 | I105: 26.8315273 | J105: 23.7400407 | K105: 20.7365629 | L105: 17.7543219 | M105: 14.8818088 | N105: 12.2501562 | O105: 10.1752784 | P105: 8.1815139 | Q105: 6.3057495 | R105: 4.6096541 | S105: 3.1167128 | T105: 2.1577249 | U105: 1.3442054 | V105: 0.806478 | W105: 0.4069942 | X105: 0.2609371 | Y105: 0.1314596 | Z105: 0.0526019 | AA105: 0.0186851 | AB105: 0.0115441 | AC105: 0.0114547 | AD105: 0.0113026 | AE105: 0.0111818 | AF105: 0.0110611 | AG105: 0.0109703 | AH105: 0.0053804 | AI105: 0
D106: Multilateral creditors | E106: =SUM(E107:E112) -> 24.06162909 | F106: =SUM(F107:F112) -> 22.7709076 | G106: 20.9264802 | H106: 18.8648019 | I106: 17.0387672 | J106: 15.1625556 | K106: 13.3399266 | L106: 11.5385791 | M106: 9.8330336 | N106: 8.2678583 | O106: 6.785086 | P106: 5.324305 | Q106: 3.9639675 | R106: 2.7821714 | S106: 1.755339 | T106: 1.2624599 | U106: 0.8648661 | V106: 0.6019497 | W106: 0.4069942 | X106: 0.2609371 | Y106: 0.1314596 | Z106: 0.0526019 | AA106: 0.0186851 | AB106: 0.0115441 | AC106: 0.0114547 | AD106: 0.0113026 | AE106: 0.0111818 | AF106: 0.0110611 | AG106: 0.0109703 | AH106: 0.0053804 | AI106: 0
D107: Inter American Development Bank (IADB) | E107: 19.237018 | F107: 18.2796258 | G107: 16.9816341 | H107: 15.6137133 | I107: 14.2793708 | J107: 12.8654114 | K107: 11.490899 | L107: 10.1314098 | M107: 8.8294262 | N107: 7.4818619 | O107: 6.1805275 | P107: 4.88698 | Q107: 3.6418828 | R107: 2.5192645 | S107: 1.7371457 | T107: 1.2561735 | U107: 0.8598494 | V107: 0.5982686 | W107: 0.4047043 | X107: 0.25976 | Y107: 0.1304003 | Z107: 0.0516663 | AA107: 0.0178703 | AB107: 0.01085 | AC107: 0.0108797 | AD107: 0.01085 | AE107: 0.01085 | AF107: 0.01085 | AG107: 0.0108797 | AH107: 0.0053804 | AI107: 0
D108: Caribbean Development Bank (CDB) | E108: 3.0719317 | F108: 2.9564887 | G108: 2.6341474 | H108: 2.29883 | I108: 1.9661612 | J108: 1.6281948 | K108: 1.2928772 | L108: 0.9575598 | M108: 0.6388628 | N108: 0.4969247 | O108: 0.4016072 | P108: 0.3059198 | Q108: 0.2294065 | R108: 0.2091283 | S108: 0.001725 | T108: 0 | U108: 0 | V108: 0 | W108: 0 | X108: 0 | Y108: 0 | Z108: 0 | AA108: 0 | AB108: 0 | AC108: 0 | AD108: 0 | AE108: 0 | AF108: 0 | AG108: 0 | AH108: 0 | AI108: 0
D109: Organization of the Petroleum Exporting Countries (OPEC) | E109: 0.9586686 | F109: 0.9012432 | G109: 0.8216886 | H109: 0.7421341 | I109: 0.6644496 | J109: 0.583025 | K109: 0.5034705 | L109: 0.4239159 | M109: 0.3453596 | N109: 0.2648069 | O109: 0.1852523 | P109: 0.1166326 | Q109: 0.0809689 | R109: 0.0448133 | S109: 0.0089036 | T109: 0 | U109: 0 | V109: 0 | W109: 0 | X109: 0 | Y109: 0 | Z109: 0 | AA109: 0 | AB109: 0 | AC109: 0 | AD109: 0 | AE109: 0 | AF109: 0 | AG109: 0 | AH109: 0 | AI109: 0
D110: Islamic Development Bank (IsDB) | E110: 0.7711969907 | F110: 0.6151587 | G110: 0.4746123 | H110: 0.1991093 | I110: 0.1211677 | J110: 0.08098 | K110: 0.048072 | L110: 0.0214236 | M110: 0.0154481 | N110: 0.0206774 | O110: 0.0144565 | P110: 0.0118775 | Q110: 0.0091583 | R110: 0.0067719 | S110: 0.005725 | T110: 0.0046263 | U110: 0.003473 | V110: 0.0022625 | W110: 0.000992 | X110: 0 | Y110: 0 | Z110: 0 | AA110: 0 | AB110: 0 | AC110: 0 | AD110: 0 | AE110: 0 | AF110: 0 | AG110: 0 | AH110: 0 | AI110: 0
D111: European Investment Bank (EIB) | E111: 0.019912 | F111: 0.0154931 | G111: 0.0114997 | H111: 0.0081171 | I111: 0.0047119 | J111: 0.0020767 | K111: 0.001861 | L111: 0.0016439 | M111: 0.0014246 | N111: 0.0012028 | O111: 0.0009786 | P111: 0.000752 | Q111: 0.000523 | R111: 0.0002918 | S111: 5.88e-05 | T111: 0 | U111: 0 | V111: 0 | W111: 0 | X111: 0 | Y111: 0 | Z111: 0 | AA111: 0 | AB111: 0 | AC111: 0 | AD111: 0 | AE111: 0 | AF111: 0 | AG111: 0 | AH111: 0 | AI111: 0
D112: Worldbank (IBRD) | E112: 0.0029018 | F112: 0.0028981 | G112: 0.0028981 | H112: 0.0028981 | I112: 0.002906 | J112: 0.0028677 | K112: 0.0027469 | L112: 0.0026261 | M112: 0.0025123 | N112: 0.0023846 | O112: 0.0022639 | P112: 0.0021431 | Q112: 0.002028 | R112: 0.0019016 | S112: 0.0017809 | T112: 0.0016601 | U112: 0.0015437 | V112: 0.0014186 | W112: 0.0012979 | X112: 0.0011771 | Y112: 0.0010593 | Z112: 0.0009356 | AA112: 0.0008148 | AB112: 0.0006941 | AC112: 0.000575 | AD112: 0.0004526 | AE112: 0.0003318 | AF112: 0.0002111 | AG112: 9.06e-05 | AH112: 0 | AI112: 0
D113: Bilateral creditors | E113: =SUM(E114:E116) -> 13.620742 | F113: =SUM(F114:F116) -> 13.106248 | G113: 12.1370407 | H113: 10.9784957 | I113: 9.7927601 | J113: 8.5774851 | K113: 7.3966363 | L113: 6.2157428 | M113: 5.0487752 | N113: 3.9822979 | O113: 3.3901924 | P113: 2.8572089 | Q113: 2.341782 | R113: 1.8274827 | S113: 1.3613738 | T113: 0.895265 | U113: 0.4793393 | V113: 0.2045283 | W113: 0 | X113: 0 | Y113: 0 | Z113: 0 | AA113: 0 | AB113: 0 | AC113: 0 | AD113: 0 | AE113: 0 | AF113: 0 | AG113: 0 | AH113: 0 | AI113: 0
D114: China | E114: 12.3567133 | F114: 11.9144367 | G114: 11.088853 | H114: 10.0730803 | I114: 9.019728 | J114: 7.916128 | K114: 6.8376516 | L114: 5.7591754 | M114: 4.6940042 | N114: 3.7292351 | O114: 3.2110284 | P114: 2.7114042 | Q114: 2.2179209 | R114: 1.7262165 | S114: 1.2823768 | T114: 0.8385372 | U114: 0.4434277 | V114: 0.1891496 | W114: 0 | X114: 0 | Y114: 0 | Z114: 0 | AA114: 0 | AB114: 0 | AC114: 0 | AD114: 0 | AE114: 0 | AF114: 0 | AG114: 0 | AH114: 0 | AI114: 0
D115: France | E115: 0.3693439 | F115: 0.3316305 | G115: 0.294802 | H115: 0.2575223 | I115: 0.2208715 | J115: 0.1829627 | K115: 0.1456828 | L115: 0.1084032 | M115: 0.0713438 | N115: 0.0338435 | O115: 0.0129513 | P115: 0.0077329 | Q115: 0.00593 | R115: 0.0040921 | S115: 0.0022717 | T115: 0.0004514 | U115: 0 | V115: 0 | W115: 0 | X115: 0 | Y115: 0 | Z115: 0 | AA115: 0 | AB115: 0 | AC115: 0 | AD115: 0 | AE115: 0 | AF115: 0 | AG115: 0 | AH115: 0 | AI115: 0
D116: India | E116: 0.8946848 | F116: 0.8601808 | G116: 0.7533857 | H116: 0.6478931 | I116: 0.5521606 | J116: 0.4783944 | K116: 0.4133019 | L116: 0.3481642 | M116: 0.2834272 | N116: 0.2192193 | O116: 0.1662127 | P116: 0.1380718 | Q116: 0.1179311 | R116: 0.0971741 | S116: 0.0767253 | T116: 0.0562764 | U116: 0.0359116 | V116: 0.0153787 | W116: 0 | X116: 0 | Y116: 0 | Z116: 0 | AA116: 0 | AB116: 0 | AC116: 0 | AD116: 0 | AE116: 0 | AF116: 0 | AG116: 0 | AH116: 0 | AI116: 0
D117: B. Local currency debt (B1+B2) | E117: =E118+E125 -> 59.47666231 | F117: 7.177108405 | G117: 1.069908692 | H117: 0.7659831187 | I117: 0.5506436304 | J117: 0.3813980945 | K117: 0.2177967498 | L117: 0.06071195188 | M117: 0.01440844779 | N117: 0.007204223897 | O117: 0 | P117: 0 | Q117: 0 | R117: 0 | S117: 0 | T117: 0 | U117: 0 | V117: 0 | W117: 0 | X117: 0 | Y117: 0 | Z117: 0 | AA117: 0 | AB117: 0 | AC117: 0 | AD117: 0 | AE117: 0 | AF117: 0 | AG117: 0 | AH117: 0 | AI117: 0
D118: B1. Market debt (B1.1.+ B1.2.) | E118: =E119+E122 -> 15.57149958 | F118: 7.177108405 | G118: 1.069908692 | H118: 0.7659831187 | I118: 0.5506436304 | J118: 0.3813980945 | K118: 0.2177967498 | L118: 0.06071195188 | M118: 0.01440844779 | N118: 0.007204223897 | O118: 0 | P118: 0 | Q118: 0 | R118: 0 | S118: 0 | T118: 0 | U118: 0 | V118: 0 | W118: 0 | X118: 0 | Y118: 0 | Z118: 0 | AA118: 0 | AB118: 0 | AC118: 0 | AD118: 0 | AE118: 0 | AF118: 0 | AG118: 0 | AH118: 0 | AI118: 0
D119: B1.1. Loans | E119: =E120+E121 -> 1.980431444 | F119: 1.791034814 | G119: 1.069908692 | H119: 0.7659831187 | I119: 0.5506436304 | J119: 0.3813980945 | K119: 0.2177967498 | L119: 0.06071195188 | M119: 0.01440844779 | N119: 0.007204223897 | O119: 0 | P119: 0 | Q119: 0 | R119: 0 | S119: 0 | T119: 0 | U119: 0 | V119: 0 | W119: 0 | X119: 0 | Y119: 0 | Z119: 0 | AA119: 0 | AB119: 0 | AC119: 0 | AD119: 0 | AE119: 0 | AF119: 0 | AG119: 0 | AH119: 0 | AI119: 0
D120: Private sector/commercial banks FX-linked debt | E120: 1.4797372 | F120: 1.441027087 | G120: 0.9131954054 | H120: 0.6873325951 | I120: 0.5017740958 | J120: 0.345376975 | K120: 0.1889798543 | L120: 0.03909928019 | M120: 0 | N120: 0 | O120: 0 | P120: 0 | Q120: 0 | R120: 0 | S120: 0 | T120: 0 | U120: 0 | V120: 0 | W120: 0 | X120: 0 | Y120: 0 | Z120: 0 | AA120: 0 | AB120: 0 | AC120: 0 | AD120: 0 | AE120: 0 | AF120: 0 | AG120: 0 | AH120: 0 | AI120: 0
D121: Private sector/commercial banks non FX-linked debt | E121: 0.500694244 | F121: 0.3500077275 | G121: 0.1567132867 | H121: 0.07865052362 | I121: 0.04886953465 | J121: 0.03602111949 | K121: 0.02881689559 | L121: 0.02161267169 | M121: 0.01440844779 | N121: 0.007204223897 | O121: 0 | P121: 0 | Q121: 0 | R121: 0 | S121: 0 | T121: 0 | U121: 0 | V121: 0 | W121: 0 | X121: 0 | Y121: 0 | Z121: 0 | AA121: 0 | AB121: 0 | AC121: 0 | AD121: 0 | AE121: 0 | AF121: 0 | AG121: 0 | AH121: 0 | AI121: 0
D122: B1.2. T-Bonds and T-Bills | E122: =E123+E124 -> 13.59106813 | F122: 5.38607359 | G122: 0 | H122: 0 | I122: 0 | J122: 0 | K122: 0 | L122: 0 | M122: 0 | N122: 0 | O122: 0 | P122: 0 | Q122: 0 | R122: 0 | S122: 0 | T122: 0 | U122: 0 | V122: 0 | W122: 0 | X122: 0 | Y122: 0 | Z122: 0 | AA122: 0 | AB122: 0 | AC122: 0 | AD122: 0 | AE122: 0 | AF122: 0 | AG122: 0 | AH122: 0 | AI122: 0
D123: T-Bonds | E123: 7.615727233 | F123: 5.38607359 | G123: 0 | H123: 0 | I123: 0 | J123: 0 | K123: 0 | L123: 0 | M123: 0 | N123: 0 | O123: 0 | P123: 0 | Q123: 0 | R123: 0 | S123: 0 | T123: 0 | U123: 0 | V123: 0 | W123: 0 | X123: 0 | Y123: 0 | Z123: 0 | AA123: 0 | AB123: 0 | AC123: 0 | AD123: 0 | AE123: 0 | AF123: 0 | AG123: 0 | AH123: 0 | AI123: 0
D124: T-Bills | E124: 5.975340899 | F124: 0 | G124: 0 | H124: 0 | I124: 0 | J124: 0 | K124: 0 | L124: 0 | M124: 0 | N124: 0 | O124: 0 | P124: 0 | Q124: 0 | R124: 0 | S124: 0 | T124: 0 | U124: 0 | V124: 0 | W124: 0 | X124: 0 | Y124: 0 | Z124: 0 | AA124: 0 | AB124: 0 | AC124: 0 | AD124: 0 | AE124: 0 | AF124: 0 | AG124: 0 | AH124: 0 | AI124: 0
D125: B2. Non-market debt | E125: =E126 -> 43.90516273 | F125: =F126 -> 0 | G125: 0 | H125: 0 | I125: 0 | J125: 0 | K125: 0 | L125: 0 | M125: 0 | N125: 0 | O125: 0 | P125: 0 | Q125: 0 | R125: 0 | S125: 0 | T125: 0 | U125: 0 | V125: 0 | W125: 0 | X125: 0 | Y125: 0 | Z125: 0 | AA125: 0 | AB125: 0 | AC125: 0 | AD125: 0 | AE125: 0 | AF125: 0 | AG125: 0 | AH125: 0 | AI125: 0
D126: Central Bank | E126: 43.90516273 | F126: 0 | G126: 0 | H126: 0 | I126: 0 | J126: 0 | K126: 0 | L126: 0 | M126: 0 | N126: 0 | O126: 0 | P126: 0 | Q126: 0 | R126: 0 | S126: 0 | T126: 0 | U126: 0 | V126: 0 | W126: 0 | X126: 0 | Y126: 0 | Z126: 0 | AA126: 0 | AB126: 0 | AC126: 0 | AD126: 0 | AE126: 0 | AF126: 0 | AG126: 0 | AH126: 0 | AI126: 0

Sheet Monthly Debt Service (hidden)
A1: Republic of Suriname - Central Government Monthly Debt Service on a Contractual Basis on June 2020 Outstanding Foreign Currency Debt Stock | U1: PRELIMINARY
B3: Preliminary data as of 10th November 2020 Data reflects contractual debt service. Please note that monthly and annual debt service do not exactly match in 2021 due to different reference dates (June 2020 vs. December 2019)
D5: Official exchange rate (USD/SRD) post-devaluation | E5: 14.154
D6: Nominal GDP in SRDm as of end-2020 (Projected) | E6: 36188.70051
D7: Nominal GDP in USDm as of end-2020 (Projected) | E7: =E6/E5 -> 2556.782571
B9: =MAX($B$1:B8)+1 -> 1 | D9: Central Government Contractual Debt Service on Jun-2020 outstanding foreign currency debt stock (USDm)
E11: 2020-07-01 | F11: 2020-08-01 | G11: 2020-09-01 | H11: 2020-10-01 | I11: 2020-11-01 | J11: 2020-12-01 | K11: 2021-01-01 | L11: 2021-02-01 | M11: 2021-03-01 | N11: 2021-04-01 | O11: 2021-05-01 | P11: 2021-06-01 | Q11: 2021-07-01 | R11: 2021-08-01 | S11: 2021-09-01 | T11: 2021-10-01 | U11: 2021-11-01 | V11: 2021-12-01
D13: A. Foreign currency debt (A1+A2) | E13: =E41+E68 -> 36.97431924 | F13: 4.827870431 | G13: 27.93264 | H13: 34.96670362 | I13: 19.38653694 | J13: 86.7210134 | K13: 12.47568846 | L13: 1.536652057 | M13: 19.39623946 | N13: 42.14170061 | O13: 9.451877275 | P13: 59.46512093 | Q13: 11.26445782 | R13: 1.49693483 | S13: 19.26535174 | T13: 33.92204468 | U13: 21.74482457 | V13: 53.53886031
D14: A1. Market debt | E14: =E42+E69 -> 22.15710472 | F14: 2.526307045 | G14: 7.500348165 | H14: 31.91394388 | I14: 10.52017995 | J14: 53.23371863 | K14: 2.20914127 | L14: 0.2084058385 | M14: 0.9506984547 | N14: 38.68041056 | O14: 0.2072566867 | P14: 45.87485078 | Q14: 2.178087266 | R14: 0.206366135 | S14: 0.9407323272 | T14: 30.42532973 | U14: 10.20347288 | V14: 41.27410422
D15: Capital market debt - Foreign law | E15: =E43+E70 -> 0 | F15: 0 | G15: 0 | H15: 25.4375 | I15: 0 | J15: 23.046875 | K15: 0 | L15: 0 | M15: 0 | N15: 25.4375 | O15: 0 | P15: 25.41458333 | Q15: 0 | R15: 0 | S15: 0 | T15: 25.4375 | U15: 0 | V15: 24.234375
D16: Eurobond 2023 (no "IMF condition") | E16: =E44+E71 -> 0 | F16: 0 | G16: 0 | H16: 0 | I16: 0 | J16: 23.046875 | K16: 0 | L16: 0 | M16: 0 | N16: 0 | O16: 0 | P16: 25.41458333 | Q16: 0 | R16: 0 | S16: 0 | T16: 0 | U16: 0 | V16: 24.234375
D17: Eurobond 2026 | E17: =E45+E72 -> 0 | F17: 0 | G17: 0 | H17: 25.4375 | I17: 0 | J17: 0 | K17: 0 | L17: 0 | M17: 0 | N17: 25.4375 | O17: 0 | P17: 0 | Q17: 0 | R17: 0 | S17: 0 | T17: 25.4375 | U17: 0 | V17: 0
D18: Commercial creditors - Foreign law | E18: =E46+E73 -> 1.975234137 | F18: 0 | G18: 0.4984396452 | H18: 2.652323308 | I18: 0 | J18: 9.46974453 | K18: 1.947107547 | L18: 0 | M18: 0.5144251693 | N18: 2.49004175 | O18: 0 | P18: 9.362609657 | Q18: 1.922520247 | R18: 0 | S18: 0.5149604693 | T18: 2.46598895 | U18: 0 | V18: 8.707872175
D19: Capital market debt - Local law | E19: =E47+E74 -> 9.43019374 | F19: 0 | G19: 6.24375 | H19: 0.3031256301 | I19: 0 | J19: 16.34590604 | K19: 0.05 | L19: 0 | M19: 0 | N19: 10.54351994 | O19: 0 | P19: 8.846224592 | Q19: 0.05 | R19: 0 | S19: 0 | T19: 2.31880811 | U19: 0 | V19: 6.129974592
D20: T-Bonds | E20: =E48+E75 -> 2.357606139 | F20: 0 | G20: 6.09 | H20: 0.3031256301 | I20: 0 | J20: 6.129974592 | K20: 0.05 | L20: 0 | M20: 0 | N20: 10.54351994 | O20: 0 | P20: 6.129974592 | Q20: 0.05 | R20: 0 | S20: 0 | T20: 2.31880811 | U20: 0 | V20: 6.129974592
D21: T-Bills | E21: =E49+E76 -> 7.072587602 | F21: 0 | G21: 0.15375 | H21: 0 | I21: 0 | J21: 10.21593144 | K21: 0 | L21: 0 | M21: 0 | N21: 0 | O21: 0 | P21: 2.71625 | Q21: 0 | R21: 0 | S21: 0 | T21: 0 | U21: 0 | V21: 0
D22: Commercial creditors - Local law | E22: =E50+E77 -> 10.75167684 | F22: 2.526307045 | G22: 0.7581585194 | H22: 3.520994944 | I22: 10.52017995 | J22: 4.371193066 | K22: 0.2120337224 | L22: 0.2084058385 | M22: 0.4362732854 | N22: 0.2093488706 | O22: 0.2072566867 | P22: 2.251433199 | Q22: 0.2055670189 | R22: 0.206366135 | S22: 0.4257718579 | T22: 0.2030326672 | U22: 10.20347288 | V22: 2.201882455
D23: A2. Non-market debt | E23: =E51+E78 -> 14.81721452 | F23: 2.301563386 | G23: 20.43229184 | H23: 3.05275974 | I23: 8.866356986 | J23: 33.48729477 | K23: 10.26654719 | L23: 1.328246219 | M23: 18.445541 | N23: 3.46129005 | O23: 9.244620588 | P23: 13.59027014 | Q23: 9.08637055 | R23: 1.290568695 | S23: 18.32461941 | T23: 3.49671495 | U23: 11.54135169 | V23: 12.26475609
D24: Multilateral creditors | E24: =E52+E79 -> 12.6117866 | F24: 2.301563386 | G24: 3.130032001 | H24: 2.64439304 | I24: 8.853509586 | J24: 31.01746203 | K24: 4.504674251 | L24: 1.328246219 | M24: 2.670245205 | N24: 2.99710675 | O24: 9.231982588 | P24: 12.16815348 | Q24: 4.3060166 | R24: 1.290568695 | S24: 2.653580605 | T24: 3.03253155 | U24: 11.52850429 | V24: 12.04973818
D25: Inter American Development Bank (IADB) | E25: =E53+E80 -> 9.996019947 | F25: 2.074601427 | G25: 1.94042899 | H25: 0.15270109 | I25: 8.677864247 | J25: 11.67210681 | K25: 1.5060471 | L25: 1.285023919 | M25: 1.8157238 | N25: 0.1512935 | O25: 9.056259188 | P25: 11.04638573 | Q25: 1.7740218 | R25: 1.247114692 | S25: 1.8024401 | T25: 0.1498914 | U25: 11.35268889 | V25: 10.92881363
D26: Caribbean Development Bank (CDB) | E26: =E54+E81 -> 1.79814725 | F26: 0 | G26: 0.16316545 | H26: 1.78362545 | I26: 0 | J26: 1.6848195 | K26: 1.7447139 | L26: 0 | M26: 0.089634 | N26: 2.14988365 | O26: 0 | P26: 0.46187005 | Q26: 1.7143752 | R26: 0 | S26: 0.0913198 | T26: 2.19645585 | U26: 0 | V26: 0.46102695
D27: Organization of the Petroleum Exporting Countries (OPEC) | E27: =E55+E82 -> 0 | F27: 0 | G27: 0.941140655 | H27: 0.7080665 | I27: 0 | J27: 0 | K27: 0 | L27: 0 | M27: 0.680027905 | N27: 0.6959296 | O27: 0 | P27: 0 | Q27: 0 | R27: 0 | S27: 0.674961205 | T27: 0.6861843 | U27: 0 | V27: 0
D28: Islamic Development Bank (IsDB) | E28: =E56+E83 -> 0.8176194 | F28: 0.1841078285 | G28: 0.08529690618 | H28: 0 | I28: 0 | J28: 17.66053571 | K28: 1.253913251 | L28: 0 | M28: 0.0848595 | N28: 0 | O28: 0 | P28: 0.6598977 | Q28: 0.8176196 | R28: 0 | S28: 0.0848595 | T28: 0 | U28: 0 | V28: 0.6598976
D29: European Investment Bank (EIB) | E29: =E57+E84 -> 0 | F29: 0.04285413008 | G29: 0 | H29: 0 | I29: 0.1727435395 | J29: 0 | K29: 0 | L29: 0.0432223 | M29: 0 | N29: 0 | O29: 0.1742863 | P29: 0 | Q29: 0 | R29: 0.04345400283 | S29: 0 | T29: 0 | U29: 0.1743544 | V29: 0
D30: Worldbank (IBRD) | E30: =E58+E85 -> 0 | F30: 0 | G30: 0 | H30: 0 | I30: 0.0029018 | J30: 0 | K30: 0 | L30: 0 | M30: 0 | N30: 0 | O30: 0.0014371 | P30: 0 | Q30: 0 | R30: 0 | S30: 0 | T30: 0 | U30: 0.001461 | V30: 0
D31: Bilateral creditors | E31: =E59+E86 -> 2.20542792 | F31: 0 | G31: 17.30225984 | H31: 0.4083667 | I31: 0.0128474 | J31: 2.469832742 | K31: 5.761872941 | L31: 0 | M31: 15.7752958 | N31: 0.4641833 | O31: 0.012638 | P31: 1.422116669 | Q31: 4.78035395 | R31: 0 | S31: 15.67103881 | T31: 0.4641834 | U31: 0.0128474 | V31: 0.215017915
D32: China | E32: =E60+E87 -> 1.42785707 | F32: 0 | G32: 14.4241877 | H32: 0 | I32: 0 | J32: 2.117969817 | K32: 5.442037391 | L32: 0 | M32: 12.43427135 | N32: 0 | O32: 0 | P32: 1.207116669 | Q32: 4.5118479 | R32: 0 | S32: 12.35038099 | T32: 0 | U32: 0 | V32: 0
D33: France | E33: =E61+E88 -> 0 | F33: 0 | G33: 1.885583617 | H33: 0 | I33: 0.0128474 | J33: 0 | K33: 0 | L33: 0 | M33: 1.906302548 | N33: 0 | O33: 0.012638 | P33: 0 | Q33: 0 | R33: 0 | S33: 1.898255016 | T33: 0 | U33: 0.0128474 | V33: 0
D34: India | E34: =E62+E89 -> 0.77757085 | F34: 0 | G34: 0.99248852 | H34: 0.4083667 | I34: 0 | J34: 0.351862925 | K34: 0.31983555 | L34: 0 | M34: 1.4347219 | N34: 0.4641833 | O34: 0 | P34: 0.215 | Q34: 0.26850605 | R34: 0 | S34: 1.4224028 | T34: 0.4641834 | U34: 0 | V34: 0.215017915
B37: =MAX($B$1:B36)+1 -> 2 | D37: Central Goverment Contractual Principal Payments on Jun-2020 outstanding foreign currency debt stock (USDm)
E39: 2020-07-01 | F39: 2020-08-01 | G39: 2020-09-01 | H39: 2020-10-01 | I39: 2020-11-01 | J39: 2020-12-01 | K39: 2021-01-01 | L39: 2021-02-01 | M39: 2021-03-01 | N39: 2021-04-01 | O39: 2021-05-01 | P39: 2021-06-01 | Q39: 2021-07-01 | R39: 2021-08-01 | S39: 2021-09-01 | T39: 2021-10-01 | U39: 2021-11-01 | V39: 2021-12-01
D41: A. Foreign currency debt (A1+A2) | E41: =E42+E51 -> 29.37783855 | F41: 3.689736371 | G41: 18.94859491 | H41: 7.582670437 | I41: 14.80256459 | J41: 63.65832567 | K41: 9.001308636 | L41: 0.9996385656 | M41: 13.00637383 | N41: 14.73296241 | O41: 5.635754035 | P41: 40.33677765 | Q41: 7.985014494 | R41: 0.9849737413 | S41: 13.00840298 | T41: 6.823862606 | U41: 17.96998754 | V41: 35.97248271
D42: A1. Market debt | E42: =E43+E46+E47+E50 -> 20.96091898 | F42: 2.356195257 | G42: 7.007750707 | H42: 5.340919037 | I42: 10.45143336 | J42: 36.38310891 | K42: 1.912456194 | L42: 0.1325564468 | M42: 0.5388737971 | N42: 12.39529266 | O42: 0.1325564468 | P42: 30.65654631 | Q42: 1.912456194 | R42: 0.1325564468 | S42: 0.5388737971 | T42: 4.395292556 | U42: 10.13255645 | V42: 27.48374842
D43: Capital market debt - Foreign law | E43: =E44+E45 -> 0 | F43: =F44+F45 -> 0 | G43: 0 | H43: 0 | I43: 0 | J43: 15 | K43: 0 | L43: 0 | M43: 0 | N43: 0 | O43: 0 | P43: 18.33333333 | Q43: 0 | R43: 0 | S43: 0 | T43: 0 | U43: 0 | V43: 18.33333333
D44: Eurobond 2023 (no "IMF condition") | E44: 0 | F44: 0 | G44: 0 | H44: 0 | I44: 0 | J44: 15 | K44: 0 | L44: 0 | M44: 0 | N44: 0 | O44: 0 | P44: 18.33333333 | Q44: 0 | R44: 0 | S44: 0 | T44: 0 | U44: 0 | V44: 18.33333333
D45: Eurobond 2026 | E45: 0 | F45: 0 | G45: 0 | H45: 0 | I45: 0 | J45: 0 | K45: 0 | L45: 0 | M45: 0 | N45: 0 | O45: 0 | P45: 0 | Q45: 0 | R45: 0 | S45: 0 | T45: 0 | U45: 0 | V45: 0
D46: Commercial creditors - Foreign law | E46: 1.814061578 | F46: 0 | G46: 0.2705388693 | H46: 2.01091425 | I46: 0 | J46: 7.822459173 | K46: 1.779899747 | L46: 0 | M46: 0.2705388693 | N46: 2.0223419 | O46: 0 | P46: 7.864606957 | Q46: 1.779899747 | R46: 0 | S46: 0.2705388693 | T46: 2.0223418 | U46: 0 | V46: 7.341809075
D47: Capital market debt - Local law | E47: =E48+E49 -> 9.211920274 | F47: =F48+F49 -> 0 | G47: 6.15 | H47: 0 | I47: 0 | J47: 9.832885163 | K47: 0 | L47: 0 | M47: 0 | N47: 10.24039431 | O47: 0 | P47: 2.65 | Q47: 0 | R47: 0 | S47: 0 | T47: 2.240394309 | U47: 0 | V47: 0
D48: T-Bonds | E48: 2.240394309 | F48: 0 | G48: 6 | H48: 0 | I48: 0 | J48: 0 | K48: 0 | L48: 0 | M48: 0 | N48: 10.24039431 | O48: 0 | P48: 0 | Q48: 0 | R48: 0 | S48: 0 | T48: 2.240394309 | U48: 0 | V48: 0
D49: T-Bills | E49: 6.971525964 | F49: 0 | G49: 0.15 | H49: 0 | I49: 0 | J49: 9.832885163 | K49: 0 | L49: 0 | M49: 0 | N49: 0 | O49: 0 | P49: 2.65 | Q49: 0 | R49: 0 | S49: 0 | T49: 0 | U49: 0 | V49: 0
D50: Commercial creditors - Local law | E50: 9.934937127 | F50: 2.356195257 | G50: 0.587211838 | H50: 3.330004787 | I50: 10.45143336 | J50: 3.727764577 | K50: 0.1325564468 | L50: 0.1325564468 | M50: 0.2683349278 | N50: 0.1325564468 | O50: 0.1325564468 | P50: 1.808606016 | Q50: 0.1325564468 | R50: 0.1325564468 | S50: 0.2683349278 | T50: 0.1325564468 | U50: 10.13255645 | V50: 1.808606016
D51: A2. Non-market debt | E51: =E52+E59 -> 8.416919567 | F51: 1.333541114 | G51: 11.9408442 | H51: 2.2417514 | I51: 4.351131236 | J51: 27.27521676 | K51: 7.088852442 | L51: 0.8670821188 | M51: 12.46750004 | N51: 2.33766975 | O51: 5.503197588 | P51: 9.680231344 | Q51: 6.0725583 | R51: 0.8524172945 | S51: 12.46952918 | T51: 2.42857005 | U51: 7.837431088 | V51: 8.48873429
D52: Multilateral creditors | E52: =SUM(E53:E58) -> 8.045627507 | F52: =SUM(F53:F58) -> 1.333541114 | G52: 1.727629392 | H52: 1.8333847 | I52: 4.351131236 | J52: 24.85145409 | K52: 3.012037951 | L52: 0.8670821188 | M52: 1.729279855 | N52: 1.87348645 | O52: 5.503197588 | P52: 8.258114675 | Q52: 2.888406 | R52: 0.8524172945 | S52: 1.731325655 | T52: 1.96438665 | U52: 7.837431088 | V52: 8.273716375
D53: Inter American Development Bank (IADB) | E53: 6.222945307 | F53: 1.107230087 | G53: 1.23801494 | H53: 0.1050847 | I53: 4.186996397 | J53: 7.466523683 | K53: 0.7352798 | L53: 0.8242900188 | M53: 1.2380148 | N53: 0.1050847 | O53: 5.336750788 | P53: 7.310428025 | Q53: 1.029604 | R53: 0.8091794917 | S53: 1.2380147 | T53: 0.1050847 | U53: 7.670083888 | V53: 7.310427825
D54: Caribbean Development Bank (CDB) | E54: 1.25 | F54: 0 | G54: 0 | H54: 1.25 | I54: 0 | J54: 0.8213039 | K54: 1.25 | L54: 0 | M54: 0 | N54: 1.29010175 | O54: 0 | P54: 0.37055025 | Q54: 1.25 | R54: 0 | S54: 0 | T54: 1.38100195 | U54: 0 | V54: 0.37055015
D55: Organization of the Petroleum Exporting Countries (OPEC) | E55: 0 | F55: 0 | G55: 0.422061255 | H55: 0.4783 | I55: 0 | J55: 0 | K55: 0 | L55: 0 | M55: 0.422061255 | N55: 0.4783 | O55: 0 | P55: 0 | Q55: 0 | R55: 0 | S55: 0.422061255 | T55: 0.4783 | U55: 0 | V55: 0
D56: Islamic Development Bank (IsDB) | E56: 0.5726822 | F56: 0.1841078285 | G56: 0.06755319682 | H56: 0 | I56: 0 | J56: 16.5636265 | K56: 1.026758151 | L56: 0 | M56: 0.0692038 | N56: 0 | O56: 0 | P56: 0.5771364 | Q56: 0.608802 | R56: 0 | S56: 0.0712497 | T56: 0 | U56: 0 | V56: 0.5927384
D57: European Investment Bank (EIB) | E57: 0 | F57: 0.04220319808 | G57: 0 | H57: 0 | I57: 0.1641348392 | J57: 0 | K57: 0 | L57: 0.0427921 | M57: 0 | N57: 0 | O57: 0.1664468 | P57: 0 | Q57: 0 | R57: 0.04323780283 | S57: 0 | T57: 0 | U57: 0.1673472 | V57: 0
D58: Worldbank (IBRD) | E58: 0 | F58: 0 | G58: 0 | H58: 0 | I58: 0 | J58: 0 | K58: 0 | L58: 0 | M58: 0 | N58: 0 | O58: 0 | P58: 0 | Q58: 0 | R58: 0 | S58: 0 | T58: 0 | U58: 0 | V58: 0
D59: Bilateral creditors | E59: =SUM(E60:E62) -> 0.37129206 | F59: =SUM(F60:F62) -> 0 | G59: 10.21321481 | H59: 0.4083667 | I59: 0 | J59: 2.42376267 | K59: 4.076814491 | L59: 0 | M59: 10.73822018 | N59: 0.4641833 | O59: 0 | P59: 1.422116669 | Q59: 3.1841523 | R59: 0 | S59: 10.73820352 | T59: 0.4641834 | U59: 0 | V59: 0.215017915
D60: China | E60: 0 | F60: 0 | G60: 7.7253289 | H60: 0 | I60: 0 | J60: 2.108297985 | K60: 3.998162291 | L60: 0 | M60: 7.725329 | N60: 0 | O60: 0 | P60: 1.207116669 | Q60: 3.1388588 | R60: 0 | S60: 7.725312542 | T60: 0 | U60: 0 | V60: 0
D61: France | E61: 0 | F61: 0 | G61: 1.67203591 | H61: 0 | I61: 0 | J61: 0 | K61: 0 | L61: 0 | M61: 1.748667982 | N61: 0 | O61: 0 | P61: 0 | Q61: 0 | R61: 0 | S61: 1.748667882 | T61: 0 | U61: 0 | V61: 0
D62: India | E62: 0.37129206 | F62: 0 | G62: 0.81585 | H62: 0.4083667 | I62: 0 | J62: 0.315464685 | K62: 0.0786522 | L62: 0 | M62: 1.2642232 | N62: 0.4641833 | O62: 0 | P62: 0.215 | Q62: 0.0452935 | R62: 0 | S62: 1.2642231 | T62: 0.4641834 | U62: 0 | V62: 0.215017915
B64: =MAX($B$1:B63)+1 -> 3 | D64: Central Government Contractual Interest Payments on Jun-2020 outstanding foreign currency debt stock (USDm)
E66: 2020-07-01 | F66: 2020-08-01 | G66: 2020-09-01 | H66: 2020-10-01 | I66: 2020-11-01 | J66: 2020-12-01 | K66: 2021-01-01 | L66: 2021-02-01 | M66: 2021-03-01 | N66: 2021-04-01 | O66: 2021-05-01 | P66: 2021-06-01 | Q66: 2021-07-01 | R66: 2021-08-01 | S66: 2021-09-01 | T66: 2021-10-01 | U66: 2021-11-01 | V66: 2021-12-01
D68: A. Foreign currency debt (A1+A2) | E68: =E69+E78 -> 7.596480693 | F68: 1.13813406 | G68: 8.984045094 | H68: 27.38403319 | I68: 4.583972342 | J68: 23.06268773 | K68: 3.474379826 | L68: 0.5370134917 | M68: 6.389865624 | N68: 27.4087382 | O68: 3.81612324 | P68: 19.12834328 | Q68: 3.279443322 | R68: 0.5119610882 | S68: 6.256948764 | T68: 27.09818207 | U68: 3.774837036 | V68: 17.5663776
D69: A1. Market debt | E69: =E70+E73+E74+E77 -> 1.196185743 | F69: 0.170111788 | G69: 0.4925974573 | H69: 26.57302485 | I69: 0.06874659198 | J69: 16.85060972 | K69: 0.2966850756 | L69: 0.07584939167 | M69: 0.4118246576 | N69: 26.2851179 | O69: 0.07470023994 | P69: 15.21830448 | Q69: 0.2656310721 | R69: 0.0738096882 | S69: 0.4018585301 | T69: 26.03003717 | U69: 0.07091643646 | V69: 13.7903558
D70: Capital market debt - Foreign law | E70: =E71+E72 -> 0 | F70: =F71+F72 -> 0 | G70: 0 | H70: 25.4375 | I70: 0 | J70: 8.046875 | K70: 0 | L70: 0 | M70: 0 | N70: 25.4375 | O70: 0 | P70: 7.08125 | Q70: 0 | R70: 0 | S70: 0 | T70: 25.4375 | U70: 0 | V70: 5.901041667
D71: Eurobond 2023 (no "IMF condition") | E71: 0 | F71: 0 | G71: 0 | H71: 0 | I71: 0 | J71: 8.046875 | K71: 0 | L71: 0 | M71: 0 | N71: 0 | O71: 0 | P71: 7.08125 | Q71: 0 | R71: 0 | S71: 0 | T71: 0 | U71: 0 | V71: 5.901041667
D72: Eurobond 2026 | E72: 0 | F72: 0 | G72: 0 | H72: 25.4375 | I72: 0 | J72: 0 | K72: 0 | L72: 0 | M72: 0 | N72: 25.4375 | O72: 0 | P72: 0 | Q72: 0 | R72: 0 | S72: 0 | T72: 25.4375 | U72: 0 | V72: 0
D73: Commercial creditors - Foreign law | E73: 0.1611725588 | F73: 0 | G73: 0.2279007759 | H73: 0.6414090578 | I73: 0 | J73: 1.647285358 | K73: 0.1672078 | L73: 0 | M73: 0.2438863 | N73: 0.46769985 | O73: 0 | P73: 1.4980027 | Q73: 0.1426205 | R73: 0 | S73: 0.2444216 | T73: 0.44364715 | U73: 0 | V73: 1.3660631
D74: Capital market debt - Local law | E74: =E75+E76 -> 0.2182734668 | F74: =F75+F76 -> 0 | G74: 0.09375 | H74: 0.3031256301 | I74: 0 | J74: 6.513020873 | K74: 0.05 | L74: 0 | M74: 0 | N74: 0.3031256301 | O74: 0 | P74: 6.196224592 | Q74: 0.05 | R74: 0 | S74: 0 | T74: 0.07841380083 | U74: 0 | V74: 6.129974592
D75: T-Bonds | E75: 0.1172118293 | F75: 0 | G75: 0.09 | H75: 0.3031256301 | I75: 0 | J75: 6.129974592 | K75: 0.05 | L75: 0 | M75: 0 | N75: 0.3031256301 | O75: 0 | P75: 6.129974592 | Q75: 0.05 | R75: 0 | S75: 0 | T75: 0.07841380083 | U75: 0 | V75: 6.129974592
D76: T-Bills | E76: 0.1010616375 | F76: 0 | G76: 0.00375 | H76: 0 | I76: 0 | J76: 0.3830462805 | K76: 0 | L76: 0 | M76: 0 | N76: 0 | O76: 0 | P76: 0.06625 | Q76: 0 | R76: 0 | S76: 0 | T76: 0 | U76: 0 | V76: 0
D77: Commercial creditors - Local law | E77: 0.8167397177 | F77: 0.170111788 | G77: 0.1709466814 | H77: 0.1909901573 | I77: 0.06874659198 | J77: 0.6434284889 | K77: 0.07947727559 | L77: 0.07584939167 | M77: 0.1679383576 | N77: 0.07679242385 | O77: 0.07470023994 | P77: 0.4428271839 | Q77: 0.07301057211 | R77: 0.0738096882 | S77: 0.1574369301 | T77: 0.07047622037 | U77: 0.07091643646 | V77: 0.3932764399
D78: A2. Non-market debt | E78: =E79+E86 -> 6.40029495 | F78: 0.968022272 | G78: 8.491447637 | H78: 0.81100834 | I78: 4.51522575 | J78: 6.212078013 | K78: 3.17769475 | L78: 0.4611641 | M78: 5.978040966 | N78: 1.1236203 | O78: 3.741423 | P78: 3.9100388 | Q78: 3.01381225 | R78: 0.4381514 | S78: 5.855090234 | T78: 1.0681449 | U78: 3.7039206 | V78: 3.7760218
D79: Multilateral creditors | E79: =SUM(E80:E85) -> 4.56615909 | F79: =SUM(F80:F85) -> 0.968022272 | G79: 1.402402609 | H79: 0.81100834 | I79: 4.50237835 | J79: 6.16600794 | K79: 1.4926363 | L79: 0.4611641 | M79: 0.94096535 | N79: 1.1236203 | O79: 3.728785 | P79: 3.9100388 | Q79: 1.4176106 | R79: 0.4381514 | S79: 0.92225495 | T79: 1.0681449 | U79: 3.6910732 | V79: 3.7760218
D80: Inter American Development Bank (IADB) | E80: 3.77307464 | F80: 0.96737134 | G80: 0.70241405 | H80: 0.04761639 | I80: 4.49086785 | J80: 4.20558313 | K80: 0.7707673 | L80: 0.4607339 | M80: 0.577709 | N80: 0.0462088 | O80: 3.7195084 | P80: 3.7359577 | Q80: 0.7444178 | R80: 0.4379352 | S80: 0.5644254 | T80: 0.0448067 | U80: 3.682605 | V80: 3.6183858
D81: Caribbean Development Bank (CDB) | E81: 0.54814725 | F81: 0 | G81: 0.16316545 | H81: 0.53362545 | I81: 0 | J81: 0.8635156 | K81: 0.4947139 | L81: 0 | M81: 0.089634 | N81: 0.8597819 | O81: 0 | P81: 0.0913198 | Q81: 0.4643752 | R81: 0 | S81: 0.0913198 | T81: 0.8154539 | U81: 0 | V81: 0.0904768
D82: Organization of the Petroleum Exporting Countries (OPEC) | E82: 0 | F82: 0 | G82: 0.5190794 | H82: 0.2297665 | I82: 0 | J82: 0 | K82: 0 | L82: 0 | M82: 0.25796665 | N82: 0.2176296 | O82: 0 | P82: 0 | Q82: 0 | R82: 0 | S82: 0.25289995 | T82: 0.2078843 | U82: 0 | V82: 0
D83: Islamic Development Bank (IsDB) | E83: 0.2449372 | F83: 0 | G83: 0.01774370935 | H83: 0 | I83: 0 | J83: 1.09690921 | K83: 0.2271551 | L83: 0 | M83: 0.0156557 | N83: 0 | O83: 0 | P83: 0.0827613 | Q83: 0.2088176 | R83: 0 | S83: 0.0136098 | T83: 0 | U83: 0 | V83: 0.0671592
D84: European Investment Bank (EIB) | E84: 0 | F84: 0.0006509319964 | G84: 0 | H84: 0 | I84: 0.008608700203 | J84: 0 | K84: 0 | L84: 0.0004302 | M84: 0 | N84: 0 | O84: 0.0078395 | P84: 0 | Q84: 0 | R84: 0.0002162 | S84: 0 | T84: 0 | U84: 0.0070072 | V84: 0
D85: Worldbank (IBRD) | E85: 0 | F85: 0 | G85: 0 | H85: 0 | I85: 0.0029018 | J85: 0 | K85: 0 | L85: 0 | M85: 0 | N85: 0 | O85: 0.0014371 | P85: 0 | Q85: 0 | R85: 0 | S85: 0 | T85: 0 | U85: 0.001461 | V85: 0
D86: Bilateral creditors | E86: =SUM(E87:E89) -> 1.83413586 | F86: =SUM(F87:F89) -> 0 | G86: 7.089045028 | H86: 0 | I86: 0.0128474 | J86: 0.04607007229 | K86: 1.68505845 | L86: 0 | M86: 5.037075616 | N86: 0 | O86: 0.012638 | P86: 0 | Q86: 1.59620165 | R86: 0 | S86: 4.932835284 | T86: 0 | U86: 0.0128474 | V86: 0
D87: China | E87: 1.42785707 | F87: 0 | G87: 6.6988588 | H87: 0 | I87: 0 | J87: 0.009671832289 | K87: 1.4438751 | L87: 0 | M87: 4.70894235 | N87: 0 | O87: 0 | P87: 0 | Q87: 1.3729891 | R87: 0 | S87: 4.62506845 | T87: 0 | U87: 0 | V87: 0
D88: France | E88: 0 | F88: 0 | G88: 0.2135477076 | H88: 0 | I88: 0.0128474 | J88: 0 | K88: 0 | L88: 0 | M88: 0.157634566 | N88: 0 | O88: 0.012638 | P88: 0 | Q88: 0 | R88: 0 | S88: 0.149587134 | T88: 0 | U88: 0.0128474 | V88: 0
D89: India | E89: 0.40627879 | F89: 0 | G89: 0.17663852 | H89: 0 | I89: 0 | J89: 0.03639824 | K89: 0.24118335 | L89: 0 | M89: 0.1704987 | N89: 0 | O89: 0 | P89: 0 | Q89: 0.22321255 | R89: 0 | S89: 0.1581797 | T89: 0 | U89: 0 | V89: 0
